{"text_format":"1","workbook":"xlsx","n_sheets":4,"sheets":["FORMULARIO UNICO NACIONAL ICA","ANEXO 1","SE","CE"],"not_rendered":{"charts":0,"images":1,"macros":1,"external_links":0,"defined_names":3,"comments":0,"pivot_tables":0},"unopened":[],"bounds":{"document_bytes":16777216,"sheet_cells":100000,"rows_first":2000,"rows_last":500,"rows_between":2000,"halvings":0,"cell_chars":16384,"cell_head_chars":4096},"cells_cut":0,"cells_raw":0,"read":"whole","date_system":"1900"}

{"sheet":"FORMULARIO UNICO NACIONAL ICA","index":0,"n_rows":122,"n_cols":43,"rows_kept":122,"cut":false,"hidden":false,"merged":[[46,1,48,1],[47,2,47,15],[46,36,48,44],[47,17,47,35],[106,0,106,8],[106,9,106,13],[88,9,88,13],[61,5,61,13],[61,14,61,44],[52,36,52,44],[53,36,53,44],[54,36,54,44],[56,34,56,35],[56,2,56,31],[56,32,56,33],[80,23,80,33],[80,34,80,43],[69,4,69,22],[74,0,81,21],[71,26,71,27],[71,29,71,30],[91,0,91,8],[91,9,91,13],[89,0,89,8],[27,0,35,0],[102,0,102,8],[102,9,102,13],[45,3,45,35],[50,13,50,15],[50,28,50,31],[36,0,54,0],[69,23,69,25],[69,26,69,44],[59,0,61,4],[59,5,59,35],[60,5,60,35],[59,36,59,44],[60,36,60,44],[55,0,58,0],[57,2,57,35],[55,2,55,35],[55,36,55,44],[71,32,71,33],[56,36,56,44],[58,2,58,35],[58,36,58,44],[57,36,57,44],[54,2,54,35],[44,36,44,44],[50,36,50,44],[51,36,51,44],[50,7,50,11],[45,36,45,44],[52,3,52,35],[53,2,53,35],[44,3,44,35],[50,26,50,27],[50,24,50,25],[39,36,39,44],[40,36,40,44],[34,28,34,35],[34,10,34,18],[34,2,34,9],[34,36,34,44],[37,2,37,35],[38,2,38,35],[29,1,29,9],[30,1,30,9],[29,28,29,35],[30,28,30,35],[29,10,29,16],[30,10,30,16],[36,36,36,44],[31,28,31,35],[31,1,31,9],[41,36,41,44],[42,36,42,44],[43,36,43,44],[19,3,19,35],[20,2,20,35],[21,3,21,35],[31,36,31,44],[30,36,30,44],[43,3,43,35],[31,17,31,27],[25,3,25,35],[26,2,26,35],[41,2,41,35],[36,2,36,35],[32,36,32,44],[39,2,39,35],[40,2,40,35],[27,10,27,16],[31,10,31,16],[35,36,35,44],[27,1,27,9],[28,1,28,9],[37,36,37,44],[38,36,38,44],[2,38,2,44],[3,38,3,39],[3,40,3,41],[3,42,3,44],[8,41,8,43],[23,36,23,44],[24,36,24,44],[22,3,22,35],[23,3,23,35],[24,3,24,35],[0,0,4,3],[4,38,4,39],[4,42,4,44],[4,40,4,41],[2,11,3,37],[4,11,4,37],[0,4,1,44],[2,4,3,10],[4,4,4,10],[11,2,11,10],[8,39,8,40],[18,2,18,35],[20,36,20,44],[6,0,6,3],[6,9,6,27],[17,9,17,13],[17,14,17,26],[17,2,17,4],[17,5,17,8],[15,9,15,44],[15,2,15,8],[16,2,16,11],[11,0,17,0],[17,27,17,32],[16,12,16,24],[16,25,16,32],[9,0,9,2],[15,1,16,1],[17,40,17,44],[13,19,13,27],[13,11,13,15],[9,10,9,13],[9,21,9,28],[9,29,9,33],[9,3,9,8],[27,36,27,44],[27,28,27,35],[34,19,34,26],[9,39,9,40],[9,41,9,43],[16,33,16,44],[9,34,9,37],[9,15,9,19],[28,10,28,16],[27,17,27,27],[28,17,28,27],[29,17,29,27],[30,17,30,27],[32,17,32,27],[22,36,22,44],[18,36,18,44],[26,36,26,44],[29,36,29,44],[25,36,25,44],[28,28,28,35],[28,36,28,44],[18,0,26,0],[19,36,19,44],[21,36,21,44],[17,34,17,39],[11,11,11,44],[13,29,13,41],[32,1,32,16],[32,28,32,35],[95,0,95,8],[95,9,95,13],[49,36,49,44],[62,0,72,0],[63,1,63,21],[63,23,63,28],[63,30,63,37],[71,1,71,2],[71,4,71,5],[71,7,71,8],[71,23,71,24],[65,23,68,44],[65,1,68,21],[50,17,50,22],[50,32,50,33],[50,2,50,5],[75,23,75,44],[69,1,69,3],[71,34,71,43],[70,11,71,20],[74,23,74,44],[88,0,88,8],[92,0,92,8],[92,9,92,13],[93,0,93,8],[93,9,93,13],[89,9,89,13],[90,0,90,8],[90,9,90,13],[87,9,87,13],[85,9,85,13],[86,9,86,13],[85,0,85,8],[86,0,86,8],[87,0,87,8],[105,9,105,13],[105,0,105,8],[100,0,100,8],[100,9,100,13],[94,0,94,8],[94,9,94,13],[101,0,101,8],[101,9,101,13],[103,0,103,8],[103,9,103,13],[96,0,96,8],[96,9,96,13],[99,0,99,8],[99,9,99,13],[97,0,97,8],[98,0,98,8],[97,9,97,13],[98,9,98,13],[104,0,104,8],[104,9,104,13],[108,0,121,0],[108,1,108,9],[108,10,108,16],[108,17,108,26],[108,27,108,34],[109,1,109,9],[109,10,109,16],[109,17,109,26],[109,27,109,34],[110,1,110,9],[110,10,110,16],[110,17,110,26],[110,27,110,34],[111,1,111,9],[111,10,111,16],[111,17,111,26],[111,27,111,34],[112,1,112,9],[112,10,112,16],[112,17,112,26],[115,1,115,9],[115,10,115,16],[115,17,115,26],[115,27,115,34],[116,1,116,9],[116,10,116,16],[116,17,116,26],[116,27,116,34],[112,27,112,34],[113,1,113,9],[113,10,113,16],[113,17,113,26],[113,27,113,34],[114,1,114,9],[114,10,114,16],[114,17,114,26],[114,27,114,34],[120,10,120,16],[120,17,120,26],[120,27,120,34],[117,1,117,9],[117,10,117,16],[117,17,117,26],[117,27,117,34],[118,1,118,9],[118,10,118,16],[118,17,118,26],[118,27,118,34],[42,3,42,35],[121,1,121,16],[121,17,121,26],[121,27,121,34],[84,0,84,44],[108,35,108,44],[109,35,109,44],[110,35,110,44],[111,35,111,44],[112,35,112,44],[113,35,113,44],[114,35,114,44],[115,35,115,44],[116,35,116,44],[117,35,117,44],[118,35,118,44],[119,35,119,44],[120,35,120,44],[121,35,121,44],[119,1,119,9],[119,10,119,16],[119,17,119,26],[119,27,119,34],[120,1,120,9]]}
[null,null,null,null,"FORMULARIO ÚNICO NACIONAL DE DECLARACIÓN Y PAGO DEL IMPUESTO DE INDUSTRIA Y COMERCIO"]
[]
[null,null,null,null,"MUNICIPIO O DISTRITO:",null,null,null,null,null,null,"ARAUCA",null,null,null,null,null,null,null,null,null,null,null,null,null,null,null,null,null,null,null,null,null,null,null,null,null,null,"Fecha máxima presentación"]
[null,null,null,null,null,null,null,null,null,null,null,null,null,null,null,null,null,null,null,null,null,null,null,null,null,null,null,null,null,null,null,null,null,null,null,null,null,null,"dd",null,"mm",null,"aaaa"]
[null,null,null,null,"DEPARTAMENTO:",null,null,null,null,null,null,"ARAUCA"]
[null,null,null,null,null,null,null,null,null,null,null,null,null,null,null,null,null,null,null,null,null,null,null,null,null,null,null,null,null,"ene-feb",null,"mar-abr",null,"may-jun",null,null,"jul-ago",null,"sep-oct",null,"nov-dic",null,"Anual"]
["AÑO GRAVABLE",null,null,null,2,0,1,9,null,"SOLAMENTE PARA BOGOTÁ, marque el Bimestre o periodo anual",null,null,null,null,null,null,null,null,null,null,null,null,null,null,null,null,null,null,null,null,null,null,null,null,null,null,null,null,null,null,null,null,"x"]
[]
[null,null,null,null,null,null,null,null,null,null,null,null,null,null,null,null,null,null,null,null,null,null,null,null,null,null,null,null,null,null,null,null,null,null,null,null,null,null,"dd","mm",null,"aaaa"]
["OPCIÓN DE USO",null,null,"DECLARACIÓN INICIAL",null,null,null,null,null,"X","SOLO PAGO",null,null,null,null,"CORRECCIÓN",null,null,null,null,null,"Declración que corrige N°",null,null,null,null,null,null,null,null,null,null,null,null,"Fecha"]
[]
["A. INFORMACIÓN DEL CONTRIBUYENTE",1,"NOMBRES Y APELLIDOS O RAZÓN SOCIAL"]
[]
[null,2,"CC",null,"NIT","X","TI",null,"CE",null,"N°",null,null,null,null,null,"DV",null,null,"Es Consorcio o Unión Temporal",null,null,null,null,null,null,null,null,null,"Realiza actividades a través de Patrimonio Autónomo"]
[]
[null,3,"DIRECCIÓN DE NOTIFICACIÓN"]
[null,null,"MUNICIPIO O DISTRITO DE LA DIRECCIÓN ",null,null,null,null,null,null,null,null,null,"ARAUCA",null,null,null,null,null,null,null,null,null,null,null,null,"DEPARTAMENTO DE LA DIRECCIÓN ",null,null,null,null,null,null,null,"ARAUCA"]
[null,4,"TELÉFONO",null,null,null,null,null,null,"5. CORREO ELECTRÓNICO",null,null,null,null,null,null,null,null,null,null,null,null,null,null,null,null,null,"6. N° DE ESTABLECIMIENTOS",null,null,null,null,null,null,"7. CLASIFICACIÓN",null,null,null,null,null,"RÉGIMEN COMÚN"]
["B. BASE GRAVABLE",8,"TOTAL INGRESOS ORDINARIOS Y EXTRAORDINARIOS DEL PERIODO EN TODO EL PAIS",null,null,null,null,null,null,null,null,null,null,null,null,null,null,null,null,null,null,null,null,null,null,null,null,null,null,null,null,null,null,null,null,null,0]
[null,9,null,"MENOS INGRESOS FUERA DE ESTE MUNICIPIO O DISTRITO (ANEXAR SOPORTES)",null,null,null,null,null,null,null,null,null,null,null,null,null,null,null,null,null,null,null,null,null,null,null,null,null,null,null,null,null,null,null,null,0]
[null,10,"TOTAL INGRESOS ORDINARIOS Y EXTRAORDINARIOS EN ESTE MUNCIPIO (RENGLÓN 8 MENOS 9)",null,null,null,null,null,null,null,null,null,null,null,null,null,null,null,null,null,null,null,null,null,null,null,null,null,null,null,null,null,null,null,null,null,{"$f":"AK19-AK20","v":0}]
[null,11,null,"MENOS INGRESOS POR DEVOLUCIONES, REBAJAS, DESCUENTOS",null,null,null,null,null,null,null,null,null,null,null,null,null,null,null,null,null,null,null,null,null,null,null,null,null,null,null,null,null,null,null,null,0]
[null,12,null,"MENOS INGRESOS POR EXPORTACIONES",null,null,null,null,null,null,null,null,null,null,null,null,null,null,null,null,null,null,null,null,null,null,null,null,null,null,null,null,null,null,null,null,0]
[null,13,null,"MENOS INGRESOS POR VENTA DE ACTIVOS FIJOS (ANEXAR SOPORTES)",null,null,null,null,null,null,null,null,null,null,null,null,null,null,null,null,null,null,null,null,null,null,null,null,null,null,null,null,null,null,null,null,0]
[null,14,null,"MENOS INGRESOS POR ACTIVIDADES EXCLUIDAS O NO SUJETAS Y OTROS INGRESOS NO GRAVADOS (ANEXAR SOPORTES)",null,null,null,null,null,null,null,null,null,null,null,null,null,null,null,null,null,null,null,null,null,null,null,null,null,null,null,null,null,null,null,null,0]
[null,15,null,"MENOS INGRESOS POR OTRAS ACTIVIDADES EXENTAS EN ESTE MUNICIPIO O DISTRITO (POR ACUERDO)",null,null,null,null,null,null,null,null,null,null,null,null,null,null,null,null,null,null,null,null,null,null,null,null,null,null,null,null,null,null,null,null,0]
[null,16,"TOTAL INGRESOS GRAVABLES (RENGLÓN 10 MENOS 11, 12, 13, 14 Y 15)",null,null,null,null,null,null,null,null,null,null,null,null,null,null,null,null,null,null,null,null,null,null,null,null,null,null,null,null,null,null,null,null,null,{"$f":"+AK21-AK22-AK23-AK24-AK25-AK26","v":0}]
["C. DISCRIMINACIÓN DE ACTIVIDADES GRAVADAS","ACTIVIDADES GRAVADAS",null,null,null,null,null,null,null,null,"CÓDIGO",null,null,null,null,null,null,"INGRESOS GRAVADOS",null,null,null,null,null,null,null,null,null,null,"TARIFA (por mil)",null,null,null,null,null,null,null,"IMPUESTO"]
[null,"ACTIVIDAD 1 (PRINCIPAL)",null,null,null,null,null,null,null,null,null,null,null,null,null,null,null,0,null,null,null,null,null,null,null,null,null,null,10,null,null,null,null,null,null,null,{"$f":"ROUND(((R29*AC29)/1000),-3)","v":0}]
[null,"ACTIVIDAD 2",null,null,null,null,null,null,null,null,null,null,null,null,null,null,null,0,null,null,null,null,null,null,null,null,null,null,null,null,null,null,null,null,null,null,{"$f":"ROUND(((R30*AC30)/1000),-3)","v":0}]
[null,"ACTIVIDAD 3",null,null,null,null,null,null,null,null,null,null,null,null,null,null,null,0,null,null,null,null,null,null,null,null,null,null,null,null,null,null,null,null,null,null,{"$f":"ROUND(((R31*AC31)/1000),-3)","v":0}]
[null,"OTRAS ACTIVIDADES",null,null,null,null,null,null,null,null,"VER DESAGREGACIÓN",null,null,null,null,null,null,{"$f":"+$R$122","v":0},null,null,null,null,null,null,null,null,null,null,"N/A",null,null,null,null,null,null,null,{"$f":"+$AJ$122","v":0}]
[null,"TOTAL INGRESOS GRAVADOS",null,null,null,null,null,null,null,null,null,null,null,null,null,null,null,{"$f":"IF(SUM(R29:AB32)>=AK27,SUM(R29:AB32),\"ERROR ingresos gravados\")","v":0},null,null,null,null,null,null,null,null,null,null,"17. TOTAL IMPUESTO",null,null,null,null,null,null,null,{"$f":"SUM(AK29:AS32)","v":0}]
[]
[null,18,"GENERACIÓN DE ENERGÍA",null,null,null,null,null,null,null,"CAPACIDAD INSTALADA",null,null,null,null,null,null,null,null,null,null,null,null,null,null,null,null,"KW","19. IMPUESTO LEY 56 DE 1981",null,null,null,null,null,null,null,0]
[]
["D. LIQUIDACIÓN PRIVADA",20,"TOTAL IMPUESTO DE INDUSTRIA Y COMERCIO (RENGLÓN 17+19)",null,null,null,null,null,null,null,null,null,null,null,null,null,null,null,null,null,null,null,null,null,null,null,null,null,null,null,null,null,null,null,null,null,{"$f":"+AK33+AK35","v":0}]
[null,21,"IMPUESTO DE AVISOS Y TABLEROS (15% del renglón 20)",null,null,null,null,null,null,null,null,null,null,null,null,null,null,null,null,null,null,null,null,null,null,null,null,null,null,null,null,null,null,null,null,null,{"$f":"ROUND((AK37*15%),-3)","v":0}]
[null,22,"PAGO POR UNIDADES COMERCIALES ADICIONALES DEL SECTOR FINANCIERO",null,null,null,null,null,null,null,null,null,null,null,null,null,null,null,null,null,null,null,null,null,null,null,null,null,null,null,null,null,null,null,null,null,0]
[null,23,"SOBRETASA BOMBERIL (Ley 1575 de 2012) (5% del renglón 20)",null,null,null,null,null,null,null,null,null,null,null,null,null,null,null,null,null,null,null,null,null,null,null,null,null,null,null,null,null,null,null,null,null,{"$f":"ROUND((AK37*5%),-3)","v":0}]
[null,24,"SOBRETASA DE SEGURIDAD (LEY 1421 de 2011) (Si la hay, liquídela según el acuerdo municipal o distrital)",null,null,null,null,null,null,null,null,null,null,null,null,null,null,null,null,null,null,null,null,null,null,null,null,null,null,null,null,null,null,null,null,null,0]
[null,25,"TOTAL IMPUESTO A CARGO (RENGLÓN 20+21+22+23+24)",null,null,null,null,null,null,null,null,null,null,null,null,null,null,null,null,null,null,null,null,null,null,null,null,null,null,null,null,null,null,null,null,null,{"$f":"+AK37+AK38+AK39+AK40+AK41","v":0}]
[null,26,null,"MENOS VALOR DE EXENCION O EXONERACION SOBRE EL IMPUESTO Y NO SOBRE LOS INGRESOS",null,null,null,null,null,null,null,null,null,null,null,null,null,null,null,null,null,null,null,null,null,null,null,null,null,null,null,null,null,null,null,null,{"$f":"ROUND((AK33*AG43),-3)","v":0}]
[null,27,null,"MENOS RETENCIONES que le practicaron a favor de este municipio o distrito en este periodo (ANEXAR SOPORTES)",null,null,null,null,null,null,null,null,null,null,null,null,null,null,null,null,null,null,null,null,null,null,null,null,null,null,null,null,null,null,null,null,0]
[null,28,null,"MENOS AUTORRETENCIONES practicadas a favor de este municipio o distrito en este periodo",null,null,null,null,null,null,null,null,null,null,null,null,null,null,null,null,null,null,null,null,null,null,null,null,null,null,null,null,null,null,null,null,0]
[null,29,null,"MENOS ANTICIPO LIQUIDADO EN EL AÑO ANTERIOR",null,null,null,null,null,null,null,null,null,null,null,null,null,null,null,null,null,null,null,null,null,null,null,null,null,null,null,null,null,null,null,null,0]
[null,30,null,null,null,null,null,null,null,null,null,null,null,null,null,null,null,null,null,null,null,null,null,null,null,null,null,null,null,null,null,null,null,null,null,null,{"$f":"IF(Q48=\"X\",0,J107)","v":0}]
[null,null,"ANTICIPO DEL AÑO SIGUIENTE (10% del renglón 20)"]
[]
[]
[null,31,"SANCIONES. ",null,null,null,null,"Extemporaneidad",null,null,null,null,null,"Correción",null,null,null,"Inexactitud",null,null,null,null,null,null,"Otra",null,"Cúal",null,null,null,null,null,0,null,null,null,0]
[]
[null,32,null,"MENOS SALDO A FAVOR DEL PERIODO ANTERIOR SIN SOLICITUD DE DEVOLUCIÓN O COMPENSACIÓN",null,null,null,null,null,null,null,null,null,null,null,null,null,null,null,null,null,null,null,null,null,null,null,null,null,null,null,null,null,null,null,null,0]
[null,33,"TOTAL SALDO A CARGO (RENGLÓN 25-26-27-28-29+30+31-32) Si el resultado es negativo escriba 0",null,null,null,null,null,null,null,null,null,null,null,null,null,null,null,null,null,null,null,null,null,null,null,null,null,null,null,null,null,null,null,null,null,{"$f":"ROUND((IF(AK42-AK43-AK44-AK45-AK46+AK47+AK51-AK53<0,0,AK42-AK43-AK44-AK45-AK46+AK47+AK51-AK53)),-3)","v":0}]
[null,34,"TOTAL SALDO A FAVOR (RENGLÓN 26+27+28+29+32-25-30-31) Si el resultado es negativo escriba 0",null,null,null,null,null,null,null,null,null,null,null,null,null,null,null,null,null,null,null,null,null,null,null,null,null,null,null,null,null,null,null,null,null,{"$f":"ROUND((IF(AK43+AK44+AK45+AK46+AK53-AK42-AK47-AK51<0,0,AK43+AK44+AK45+AK46+AK53-AK42-AK47-AK51)),-3)","v":0}]
["E. PAGO",35,"VALOR A PAGAR",null,null,null,null,null,null,null,null,null,null,null,null,null,null,null,null,null,null,null,null,null,null,null,null,null,null,null,null,null,null,null,null,null,{"$f":"+AK54","v":0}]
[null,36,"DESCUENTO POR PRONTO PAGO (10% del Renglón 20-26-27-28) (Si Aplica, liquídelo según el Acuerdo Municipal) ",null,null,null,null,null,null,null,null,null,null,null,null,null,null,null,null,null,null,null,null,null,null,null,null,null,null,null,null,null,0,null,null,null,{"$f":"IF(G51=\"X\",0,J89)","v":0}]
[null,37,"INTERESES DE MORA",null,null,null,null,null,null,null,null,null,null,null,null,null,null,null,null,null,null,null,null,null,null,null,null,null,null,null,null,null,null,null,null,null,0]
[null,38,"TOTAL A PAGAR (RENGLÓN 35-36+37)",null,null,null,null,null,null,null,null,null,null,null,null,null,null,null,null,null,null,null,null,null,null,null,null,null,null,null,null,null,null,null,null,null,{"$f":"IF(AK56-AK57+AK58<0,0,AK56-AK57+AK58)","v":0}]
["SECCIÓN PAGO VOLUNTARIO (Solamente donde exista esta opción)",null,null,null,null,"39. LIQUIDE EL VALOR DEL PAGO VOLUNTARIO (Según instrucciones del municipio/distrito)",null,null,null,null,null,null,null,null,null,null,null,null,null,null,null,null,null,null,null,null,null,null,null,null,null,null,null,null,null,null,0]
[null,null,null,null,null,"40. TOTAL A PAGAR CON PAGO VOLUNTARIO (Renglón 38 + 39) ",null,null,null,null,null,null,null,null,null,null,null,null,null,null,null,null,null,null,null,null,null,null,null,null,null,null,null,null,null,null,{"$f":"+AK59+AK60","v":0}]
[null,null,null,null,null,"Destino de mi aporte voluntario"]
["F.FIRMAS"]
[null,"FIRMA DEL DECLARANTE",null,null,null,null,null,null,null,null,null,null,null,null,null,null,null,null,null,null,null,null,null,"FIRMA DEL CONTADOR",null,null,null,null,null,"X","REVISOR FISCAL"]
[]
[]
[]
[]
[]
[null,"NOMBRE",null,null,null,null,null,null,null,null,null,null,null,null,null,null,null,null,null,null,null,null,null,"NOMBRE"]
[]
[null,"C.C.",null,"X","C.E.",null,null,"T.I.",null,null,"N°",null,null,null,null,null,null,null,null,null,null,null,null,"C.C.",null,null,"C.E.",null,null,"T.P.",null,"X","N°"]
[]
[]
[null,null,null,null,null,null,null,null,null,null,null,null,null,null,null,null,null,null,null,null,null,null,null,"Espacio para uso exclusivo para el sello de la entidad recaudadora"]
[null,null,null,null,null,null,null,null,null,null,null,null,null,null,null,null,null,null,null,null,null,null,null,"(Fecha efectiva de la transacción)"]
[]
[]
[]
[]
[null,null,null,null,null,null,null,null,null,null,null,null,null,null,null,null,null,null,null,null,null,null,null,"FORMULARIO No. "]
[]
[]
[]
[]
["FECHA FINAL DESCUENTO:",null,null,null,null,null,null,null,null,"2020-04-30"]
["FECHA DE PRESENTACIÓN:",null,null,null,null,null,null,null,null,{"$f":"TODAY()","v":"2021-12-30"}]
["DESCUENTO POR PRONTO PAGO:",null,null,null,null,null,null,null,null,{"$f":"IF(ROUND(((AK37-AK43-AK44-AK45)*AG57),-3)<0,0,ROUND(((AK37-AK43-AK44-AK45)*AG57),-3))","v":0}]
["TOTAL DESCUENTO POR PRONTO PAGO:",null,null,null,null,null,null,null,null,{"$f":"IF(J87<J86,J88,0)","v":0}]
["SANCION MINIMA:",null,null,null,null,null,null,null,null,{"$f":"ROUND((#REF!*10),-3)","v":{"$error":"#REF!"}}]
["BASE SANCION X EXTEMPORANEIDAD:",null,null,null,null,null,null,null,null,{"$f":"IF(#REF!>(#REF!*10),#REF!,ROUND((#REF!*10),-3))","v":{"$error":"#REF!"}}]
["BASE SANCION X CORRECCIÓN:",null,null,null,null,null,null,null,null,{"$f":"+#REF!","v":{"$error":"#REF!"}}]
["SANCION X EXTEMPORANEIDAD:",null,null,null,null,null,null,null,null,{"$f":"IF(G51=\"X\",'FORMULARIO UNICO NACIONAL ICA'!J91:N91,0)","v":0}]
["SANCION X CORRECCIÓN:",null,null,null,null,null,null,null,null,{"$f":"IF(M51=\"X\",J92,0)","v":0}]
["TOTAL SANCIONES:",null,null,null,null,null,null,null,null,{"$f":"+J93+J94","v":0}]
["BASE REDUCCIÓN SANCION X EXTEMP:",null,null,null,null,null,null,null,null,{"$f":"IF((J91-(J91*AG51))>J90,(J91-(J91*AG51)),J90)","v":{"$error":"#REF!"}}]
["BASE REDUCCIÓN SANCION X CORREC:",null,null,null,null,null,null,null,null,{"$f":"IF((J92-(J92*AG52))>J90,J92-(J92*AG51),J90)","v":{"$error":"#REF!"}}]
["REDUCCIÓN SANCION X EXTEMP:",null,null,null,null,null,null,null,null,{"$f":"IF(G51=\"X\",J96,0)","v":0}]
["REDUCCIÓN SANCION X CORREC:",null,null,null,null,null,null,null,null,{"$f":"IF(M51=\"X\",J97,0)","v":0}]
["TOTAL REDUCCION SANCIONES:",null,null,null,null,null,null,null,null,{"$f":"+J98+J99","v":0}]
["CASILLA 31 SANCIONES:",null,null,null,null,null,null,null,null,{"$f":"IF(J100<J90,J90,J100)","v":{"$error":"#REF!"}}]
["BASE INTERESES EXTEMPORANEIDAD:",null,null,null,null,null,null,null,null,{"$f":"IF(AND($G$51=\"X\",+AK56>0),$AK$42-$AK$43-$AK$44-$AK$45-$AK$46+$AK$47-$AK$53,0)","v":0}]
["LIQUIDACIÓN DE INTERESES:",null,null,null,null,null,null,null,null,{"$f":"IF(J102<0,0,J102)","v":0}]
["BASE INTERESES CORRECION:",null,null,null,null,null,null,null,null,{"$f":"IF(AND($M$51=\"X\",$AK$56>0),#REF!,0)","v":0}]
["LIQUIDACIÓN DE INTERESES:",null,null,null,null,null,null,null,null,{"$f":"IF(J104<0,0,J104)","v":0}]
["CASILLA 37 INTERESES DE MORA:",null,null,null,null,null,null,null,null,{"$f":"+#REF!+IF(G51=\"X\",#REF!,#REF!)","v":{"$error":"#REF!"}}]
["CASILLA 30 ANTICIPO TRIBUTARIO:",null,null,null,null,null,null,null,null,{"$f":"ROUND((AK37*10%),-3)","v":0}]
[]
["C. DISCRIMINACIÓN DE ACTIVIDADES GRAVADAS","ACTIVIDADES GRAVADAS",null,null,null,null,null,null,null,null,"CÓDIGO",null,null,null,null,null,null,"INGRESOS GRAVADOS",null,null,null,null,null,null,null,null,null,"TARIFA (por mil)",null,null,null,null,null,null,null,"IMPUESTO"]
[null,"ACTIVIDAD 4",null,null,null,null,null,null,null,null,null,null,null,null,null,null,null,0,null,null,null,null,null,null,null,null,null,null,null,null,null,null,null,null,null,{"$f":"ROUND(((R110*AB110)/1000),-3)","v":0}]
[null,"ACTIVIDAD 5",null,null,null,null,null,null,null,null,null,null,null,null,null,null,null,0,null,null,null,null,null,null,null,null,null,null,null,null,null,null,null,null,null,{"$f":"ROUND(((R111*AB111)/1000),-3)","v":0}]
[null,"ACTIVIDAD 6",null,null,null,null,null,null,null,null,null,null,null,null,null,null,null,0,null,null,null,null,null,null,null,null,null,null,null,null,null,null,null,null,null,{"$f":"ROUND(((R112*AB112)/1000),-3)","v":0}]
[null,"ACTIVIDAD 7",null,null,null,null,null,null,null,null,null,null,null,null,null,null,null,0,null,null,null,null,null,null,null,null,null,null,null,null,null,null,null,null,null,{"$f":"ROUND(((R113*AB113)/1000),-3)","v":0}]
[null,"ACTIVIDAD 8",null,null,null,null,null,null,null,null,null,null,null,null,null,null,null,0,null,null,null,null,null,null,null,null,null,null,null,null,null,null,null,null,null,0]
[null,"ACTIVIDAD 9",null,null,null,null,null,null,null,null,null,null,null,null,null,null,null,0,null,null,null,null,null,null,null,null,null,null,null,null,null,null,null,null,null,0]
[null,"ACTIVIDAD 10",null,null,null,null,null,null,null,null,null,null,null,null,null,null,null,0,null,null,null,null,null,null,null,null,null,null,null,null,null,null,null,null,null,0]
[null,"ACTIVIDAD 11",null,null,null,null,null,null,null,null,null,null,null,null,null,null,null,0,null,null,null,null,null,null,null,null,null,null,null,null,null,null,null,null,null,0]
[null,"ACTIVIDAD 12",null,null,null,null,null,null,null,null,null,null,null,null,null,null,null,0,null,null,null,null,null,null,null,null,null,null,null,null,null,null,null,null,null,0]
[null,"ACTIVIDAD 13",null,null,null,null,null,null,null,null,null,null,null,null,null,null,null,0,null,null,null,null,null,null,null,null,null,null,null,null,null,null,null,null,null,0]
[null,"ACTIVIDAD 14",null,null,null,null,null,null,null,null,null,null,null,null,null,null,null,0,null,null,null,null,null,null,null,null,null,null,null,null,null,null,null,null,null,0]
[null,"ACTIVIDAD 15",null,null,null,null,null,null,null,null,null,null,null,null,null,null,null,0,null,null,null,null,null,null,null,null,null,null,null,null,null,null,null,null,null,0]
[null,"TOTAL INGRESOS GRAVADOS",null,null,null,null,null,null,null,null,null,null,null,null,null,null,null,{"$f":"SUM(R110:AA121)","v":0},null,null,null,null,null,null,null,null,null,"17. TOTAL IMPUESTO",null,null,null,null,null,null,null,{"$f":"SUM(AJ110:AR121)","v":0}]

{"sheet":"ANEXO 1","index":1,"n_rows":1123,"n_cols":6,"rows_kept":1123,"cut":false,"hidden":true,"merged":[[487,0,490,0],[0,0,0,1],[1,0,2,0],[1,1,2,1],[471,0,474,0],[478,0,481,0]]}
["ACUERDO 200.02.06 DEL 21 DE MAYO DE 2013. ART. 5",null,null,"DESCRIPCION MUNICIPIO","DEPARTAMENTO"]
["CODIGO CIIU","DESCRIPCION",null,"ABEJORRAL","AMAZONAS"]
[null,null,null,"ABREGO","ANTIOQUIA"]
["0220","Extracción de madera.",null,"ABRIAQUÍ","ARAUCA"]
["0230","Recolección de productos forestales diferentes a la madera.",null,"ACACÍAS","ATLANTICO"]
["0240","Servicios de apoyo a la silvicultura.",null,"ACANDÍ","BOGOTÁ"]
["0312","Pesca de agua dulce.",null,"ACEVEDO","BOLIVAR"]
["0322","Acuicultura de agua dulce.",null,"ACHÍ","BOYACA"]
["0510","Extracción de hulla (carbón de piedra).",null,"AGRADO","CALDAS"]
["0520","Extracción de carbón lignito.",null,"AGUA DE DIOS","CAQUETA"]
["0610","Extracción de petróleo crudo.",null,"AGUACHICA","CASANARE"]
["0620","Extracción de gas natural.",null,"AGUADA","CAUCA"]
["0710","Extracción de minerales de hierro.",null,"AGUADAS","CESAR"]
["0721","Extracción de minerales de uranio y de torio.",null,"AGUAZUL","CHOCO"]
["0722","Extracción de oro y otros metales preciosos.",null,"AGUSTÍN CODAZZI","CORDOBA"]
["0723","Extracción de minerales de níquel.",null,"AIPE","CUNDINAMARCA"]
["0729","Extracción de otros minerales metalíferos no ferrosos n.c.p.",null,"ALBÁN","GUAINIA"]
["0811","Extracción de piedra, arena, arcillas comunes, yeso y anhidrita.",null,"ALBÁN","GUAVIARE"]
["0812","Extracción de arcillas de uso industrial, caliza, caolín y bentonitas.",null,"ALBANIA","HUILA"]
["0820","Extracción de esmeraldas, piedras preciosas y semipreciosas.",null,"ALBANIA","LA GUAJIRA"]
["0891","Extracción de minerales para la fabricación de abonos y productos químicos.",null,"ALBANIA","MAGDALENA"]
["0892","Extracción de halita (sal).",null,"ALCALÁ","META"]
["0899","Extracción de otros minerales no metálicos n.c.p.",null,"ALDANA","NARIÑO"]
["0910","Actividades de apoyo para la extracción de petróleo y de gas natural.",null,"ALEJANDRÍA","NORTE DE SANTANDER"]
["0990","Actividades de apoyo para otras actividades de explotación de minas y canteras.",null,"ALGARROBO","PUTUMAYO"]
[1011,"Procesamiento y conservación de carne y productos cárnicos.",null,"ALGECIRAS","QUINDIO"]
[1012,"Procesamiento y conservación de pescados, crustáceos y moluscos.",null,"ALMAGUER","RISARALDA"]
[1020,"Procesamiento y conservación de frutas, legumbres, hortalizas y tubérculos.",null,"ALMEIDA","SAN ANDRES"]
[1030,"Elaboración de aceites y grasas de origen vegetal y animal.",null,"ALPUJARRA","SANTANDER"]
[1040,"Elaboración de productos lácteos.",null,"ALTAMIRA","SUCRE"]
[1051,"Elaboración de productos de molinería.",null,"ALTO BAUDÓ","TOLIMA"]
[1052,"Elaboración de almidones y productos derivados del almidón.",null,"ALTOS DEL ROSARIO","VALLE"]
[1061,"Trilla de café.",null,"ALVARADO","VAUPES"]
[1062,"Descafeinado, tostión y molienda del café.",null,"AMAGÁ","VICHADA"]
[1063,"Otros derivados del café.",null,"AMALFI"]
[1071,"Elaboración y refinación de azúcar.",null,"AMBALEMA"]
[1072,"Elaboración de panela.",null,"ANAPOIMA"]
[1081,"Elaboración de productos de panadería.",null,"ANCUYÁ"]
[1082,"Elaboración de cacao, chocolate y productos de confitería.",null,"ANDALUCÍA"]
[1083,"Elaboración de macarrones, fideos, alcuzcuz y productos farináceos similares.",null,"ANDES"]
[1084,"Elaboración de comidas y platos preparados.",null,"ANGELÓPOLIS"]
[1089,"Elaboración de otros productos alimenticios n.c.p.",null,"ANGOSTURA"]
[1090,"Elaboración de alimentos preparados para animales.",null,"ANOLAIMA"]
[1101,"Destilación, rectificación y mezcla de bebidas alcohólicas.",null,"ANORÍ"]
[1102,"Elaboración de bebidas fermentadas no destiladas.",null,"ANSERMA"]
[1103,"Producción de malta, elaboración de cervezas y otras bebidas malteadas.",null,"ANSERMANUEVO"]
[1104,"Elaboración de bebidas no alcohólicas, producción de aguas minerales y de otras aguas embotelladas.",null,"ANZA"]
[1200,"Elaboración de productos de tabaco.",null,"ANZOÁTEGUI"]
[1311,"Preparación e hilatura de fibras textiles.",null,"APARTADÓ"]
[1312,"Tejeduría de productos textiles.",null,"APÍA"]
[1313,"Acabado de productos textiles.",null,"APULO"]
[1391,"Fabricación de tejidos de punto y ganchillo.",null,"AQUITANIA"]
[1392,"Confección de artículos con materiales textiles, excepto prendas de vestir.",null,"ARACATACA"]
[1393,"Fabricación de tapetes y alfombras para pisos.",null,"ARANZAZU"]
[1394,"Fabricación de cuerdas, cordeles, cables, bramantes y redes.",null,"ARATOCA"]
[1399,"Fabricación de otros artículos textiles n.c.p.",null,"ARAUCA"]
[1410,"Confección de prendas de vestir, excepto prendas de piel.",null,"ARAUQUITA"]
[1420,"Fabricación de artículos de piel.",null,"ARBELÁEZ"]
[1430,"Fabricación de artículos de punto y ganchillo.",null,"ARBOLEDA"]
[1511,"Curtido y recurtido de cueros; recurtido y teñido de pieles.",null,"ARBOLEDAS"]
[1512,"Fabricación de artículos de viaje, bolsos de mano y artículos similares elaborados en cuero, y fabricación de artículos de talabartería y guarnicionería.",null,"ARBOLETES"]
[1513,"Fabricación de artículos de viaje, bolsos de mano y artículos similares; artículos de talabartería y guarnicionería elaborados en otros materiales.",null,"ARCABUCO"]
[1521,"Fabricación de calzado de cuero y piel, con cualquier tipo de suela.",null,"ARENAL"]
[1522,"Fabricación de otros tipos de calzado, excepto calzado de cuero y piel.",null,"ARGELIA"]
[1523,"Fabricación de partes del calzado.",null,"ARGELIA"]
[1610,"Aserrado, acepillado e impregnación de la madera.",null,"ARGELIA"]
[1620,"Fabricación de hojas de madera para enchapado; fabricación de tableros contrachapados, tableros laminados, tableros de partículas y otros tableros y paneles.",null,"ARIGUANÍ"]
[1630,"Fabricación de partes y piezas de madera, de carpintería y ebanistería para la construcción.",null,"ARJONA"]
[1640,"Fabricación de recipientes de madera.",null,"ARMENIA"]
[1690,"Fabricación de otros productos de madera; fabricación de artículos de corcho, cestería y espartería.",null,"ARMENIA"]
[1701,"Fabricación de pulpas (pastas) celulósicas; papel y cartón.",null,"ARMERO"]
[1702,"Fabricación de papel y cartón ondulado (corrugado); fabricación de envases, empaques y de embalajes de papel y cartón.",null,"ARROYOHONDO"]
[1709,"Fabricación de otros artículos de papel y cartón.",null,"ASTREA"]
[1811,"Actividades de impresión.",null,"ATACO"]
[1812,"Actividades de servicios relacionados con la impresión.",null,"ATRATO"]
[1820,"Producción de copias a partir de grabaciones originales.",null,"AYAPEL"]
[1910,"Fabricación de productos de hornos de coque.",null,"BAGADÓ"]
[1921,"Fabricación de productos de la refinación del petróleo.",null,"BAHÍA SOLANO"]
[1922,"Actividad de mezcla de combustibles.",null,"BAJO BAUDÓ"]
[2011,"Fabricación de sustancias y productos químicos básicos.",null,"BALBOA"]
[2012,"Fabricación de abonos y compuestos inorgánicos nitrogenados.",null,"BALBOA"]
[2013,"Fabricación de plásticos en formas primarias.",null,"BARANOA"]
[2014,"Fabricación de caucho sintético en formas primarias.",null,"BARAYA"]
[2021,"Fabricación de plaguicidas y otros productos químicos de uso agropecuario.",null,"BARBACOAS"]
[2022,"Fabricación de pinturas, barnices y revestimientos similares, tintas para impresión y masillas.",null,"BARBOSA"]
[2023," Fabricación de jabones y detergentes, preparados para limpiar y pulir; perfumes y preparados de tocador.",null,"BARBOSA"]
[2029,"Fabricación de otros productos químicos n.c.p.",null,"BARICHARA"]
[2030,"Fabricación de fibras sintéticas y artificiales.",null,"BARRANCA DE UPÍA"]
[2100,"Fabricación de productos farmacéuticos, sustancias químicas medicinales y productos botánicos de uso farmacéutico.",null,"BARRANCABERMEJA"]
[2211,"Fabricación de llantas y neumáticos de caucho",null,"BARRANCAS"]
[2212,"Reencauche de llantas usadas",null,"BARRANCO DE LOBA"]
[2219,"Fabricación de formas básicas de caucho y otros productos de caucho n.c.p.",null,"BARRANCO MINAS"]
[2221,"Fabricación de formas básicas de plástico.",null,"BARRANQUILLA"]
[2229,"Fabricación de artículos de plástico n.c.p.",null,"BECERRIL"]
[2310,"Fabricación de vidrio y productos de vidrio.",null,"BELALCÁZAR"]
[2391,"Fabricación de productos refractarios.",null,"BELÉN"]
[2392,"Fabricación de materiales de arcilla para la construcción.",null,"BELÉN"]
[2393,"Fabricación de otros productos de cerámica y porcelana.",null,"BELÉN DE LOS ANDAQUÍES"]
[2394,"Fabricación de cemento, cal y yeso.",null,"BELÉN DE UMBRÍA"]
[2395,"Fabricación de artículos de hormigón, cemento y yeso.",null,"BELLO"]
[2396,"Corte, tallado y acabado de la piedra.",null,"BELMIRA"]
[2399,"Fabricación de otros productos minerales no metálicos n.c.p.",null,"BELTRÁN"]
[2410,"Industrias básicas de hierro y de acero.",null,"BERBEO"]
[2421,"Industrias básicas de metales preciosos.",null,"BETANIA"]
[2429,"Industrias básicas de otros metales no ferrosos.",null,"BETÉITIVA"]
[2431,"Fundición de hierro y de acero.",null,"BETULIA"]
[2432,"Fundición de metales no ferrosos.",null,"BETULIA"]
[2511,"Fabricación de productos metálicos para uso estructural.",null,"BITUIMA"]
[2512,"Fabricación de tanques, depósitos y recipientes de metal, excepto los utilizados para el envase o transporte de mercancías.",null,"BOAVITA"]
[2513,"Fabricación de generadores de vapor, excepto calderas de agua caliente para calefacción central.",null,"BOCHALEMA"]
[2520,"Fabricación de armas y municiones.",null,"BOGOTÁ, D.C."]
[2591,"Forja, prensado, estampado y laminado de metal; pulvimetalurgia.",null,"BOJACÁ"]
[2592,"Tratamiento y revestimiento de metales; mecanizado.",null,"BOJAYA"]
[2593,"Fabricación de artículos de cuchillería, herramientas de mano y artículos de ferretería.",null,"BOLÍVAR"]
[2599,"Fabricación de otros productos elaborados de metal n.c.p.",null,"BOLÍVAR"]
[2610,"Fabricación de componentes y tableros electrónicos.",null,"BOLÍVAR"]
[2620,"Fabricación de computadoras y de equipo periférico.",null,"BOSCONIA"]
[2630,"Fabricación de equipos de comunicación.",null,"BOYACÁ"]
[2640,"Fabricación de aparatos electrónicos de consumo.",null,"BRICEÑO"]
[2651,"Fabricación de equipo de medición, prueba, navegación y control.",null,"BRICEÑO"]
[2652,"Fabricación de relojes.",null,"BUCARAMANGA"]
[2660,"Fabricación de equipo de irradiación y equipo electrónico de uso médico y terapéutico.",null,"BUCARASICA"]
[2670,"Fabricación de instrumentos ópticos y equipo fotográfico.",null,"BUENAVENTURA"]
[2680,"Fabricación de medios magnéticos y ópticos para almacenamiento de datos.",null,"BUENAVISTA"]
[2711,"Fabricación de motores, generadores y transformadores eléctricos.",null,"BUENAVISTA"]
[2712,"Fabricación de aparatos de distribución y control de la energía eléctrica.",null,"BUENAVISTA"]
[2720,"Fabricación de pilas, baterías y acumuladores eléctricos.",null,"BUENAVISTA"]
[2731,"Fabricación de hilos y cables eléctricos y de fibra óptica.",null,"BUENOS AIRES"]
[2732,"Fabricación de dispositivos de cableado.",null,"BUESACO"]
[2740,"Fabricación de equipos eléctricos de iluminación.",null,"BUGALAGRANDE"]
[2750,"Fabricación de aparatos de uso doméstico.",null,"BURITICÁ"]
[2790,"Fabricación de otros tipos de equipo eléctrico n.c.p.",null,"BUSBANZÁ"]
[2811,"Fabricación de motores, turbinas, y partes para motores de combustión interna.",null,"CABRERA"]
[2812,"Fabricación de equipos de potencia hidráulica y neumática.",null,"CABRERA"]
[2813,"Fabricación de otras bombas, compresores, grifos y válvulas.",null,"CABUYARO"]
[2814,"Fabricación de cojinetes, engranajes, trenes de engranajes y piezas de transmisión.",null,"CACAHUAL"]
[2815,"Fabricación de hornos, hogares y quemadores industriales.",null,"CÁCERES"]
[2816,"Fabricación de equipo de elevación y manipulación.",null,"CACHIPAY"]
[2817,"Fabricación de maquinaria y equipo de oficina (excepto computadoras y equipo periférico).",null,"CACHIRÁ"]
[2818,"Fabricación de herramientas manuales con motor.",null,"CÁCOTA"]
[2819,"Fabricación de otros tipos de maquinaria y equipo de uso general n.c.p.",null,"CAICEDO"]
[2821,"Fabricación de maquinaria agropecuaria y forestal.",null,"CAICEDONIA"]
[2822,"Fabricación de máquinas formadoras de metal y de máquinas herramienta.",null,"CAIMITO"]
[2823,"Fabricación de maquinaria para la metalurgia.",null,"CAJAMARCA"]
[2824,"Fabricación de maquinaria para explotación de minas y canteras y para obras de construcción.",null,"CAJIBÍO"]
[2825,"Fabricación de maquinaria para la elaboración de alimentos, bebidas y tabaco.",null,"CAJICÁ"]
[2826,"Fabricación de maquinaria para la elaboración de productos textiles, prendas de vestir y cueros.",null,"CALAMAR"]
[2829,"Fabricación de otros tipos de maquinaria y equipo de uso especial n.c.p.",null,"CALAMAR"]
[2910,"Fabricación de vehículos automotores y sus motores.",null,"CALARCA"]
[2920,"Fabricación de carrocerías para vehículos automotores; fabricación de remolques y semirremolques.",null,"CALDAS"]
[2930,"Fabricación de partes, piezas (autopartes) y accesorios (lujos) para vehículos automotores.",null,"CALDAS"]
[3011,"Construcción de barcos y de estructuras flotantes.",null,"CALDONO"]
[3012,"Construcción de embarcaciones de recreo y deporte.",null,"CALI"]
[3020,"Fabricación de locomotoras y de material rodante para ferrocarriles.",null,"CALIFORNIA"]
[3030,"Fabricación de aeronaves, naves espaciales y de maquinaria conexa.",null,"CALIMA"]
[3040,"Fabricación de vehículos militares de combate.",null,"CALOTO"]
[3091,"Fabricación de motocicletas.",null,"CAMPAMENTO"]
[3092,"Fabricación de bicicletas y de sillas de ruedas para personas con discapacidad.",null,"CAMPO DE LA CRUZ"]
[3099,"Fabricación de otros tipos de equipo de transporte n.c.p.",null,"CAMPOALEGRE"]
[3110,"Fabricación de muebles.",null,"CAMPOHERMOSO"]
[3120,"Fabricación de colchones y somieres.",null,"CANALETE"]
[3210,"Fabricación de joyas, bisutería y artículos conexos.",null,"CANDELARIA"]
[3220," Fabricación de instrumentos musicales.",null,"CANDELARIA"]
[3230,"Fabricación de artículos y equipo para la práctica del deporte.",null,"CANTAGALLO"]
[3240,"Fabricación de juegos, juguetes y rompecabezas.",null,"CAÑASGORDAS"]
[3250,"Fabricación de instrumentos, aparatos y materiales médicos y odontológicos (incluido mobiliario).",null,"CAPARRAPÍ"]
[3290,"Otras industrias manufactureras n.c.p.",null,"CAPITANEJO"]
[3311,"Mantenimiento y reparación especializado de productos elaborados en metal.",null,"CAQUEZA"]
[3312,"Mantenimiento y reparación especializado de maquinaria y equipo.",null,"CARACOLÍ"]
[3313,"Mantenimiento y reparación especializado de equipo electrónico y óptico.",null,"CARAMANTA"]
[3314,"Mantenimiento y reparación especializado de equipo eléctrico.",null,"CARCASÍ"]
[3315,"Mantenimiento y reparación especializado de equipo de transporte, excepto los vehículos automotores, motocicletas y bicicletas.",null,"CAREPA"]
[3319,"Mantenimiento y reparación de otros tipos de equipos y sus componentes n.c.p.",null,"CARMEN DE APICALÁ"]
[3320,"Instalación especializada de maquinaria y equipo industrial.",null,"CARMEN DE CARUPA"]
[3511,"Generación de energía eléctrica.",null,"CARMEN DEL DARIÉN"]
[3512,"Transmisión de energía eléctrica.",null,"CAROLINA"]
[3513,"Distribución de energía eléctrica.",null,"CARTAGENA"]
[3514,"Comercialización de energía eléctrica.",null,"CARTAGENA DEL CHAIRÁ"]
[3520,"Producción de gas; distribución de combustibles gaseosos por tuberías.",null,"CARTAGO"]
[3530,"Suministro de vapor y aire acondicionado.",null,"CARURU"]
[3600,"Captación, tratamiento y distribución de agua.",null,"CASABIANCA"]
[3600,"Captación, tratamiento y distribución de agua.",null,"CASTILLA LA NUEVA"]
[3700,"Evacuación y tratamiento de aguas residuales.",null,"CAUCASIA"]
[3700,"Evacuación y tratamiento de aguas residuales.",null,"CEPITÁ"]
[3811,"Recolección de desechos no peligrosos.",null,"CERETÉ"]
[3811,"Recolección de desechos no peligrosos.",null,"CERINZA"]
[3812,"Recolección de desechos peligrosos.",null,"CERRITO"]
[3812,"Recolección de desechos peligrosos.",null,"CERRO SAN ANTONIO"]
[3821,"Tratamiento y disposición de desechos no peligrosos.",null,"CÉRTEGUI"]
[3821,"Tratamiento y disposición de desechos no peligrosos.",null,"CHACHAGÜÍ"]
[3822,"Tratamiento y disposición de desechos peligrosos.",null,"CHAGUANÍ"]
[3822,"Tratamiento y disposición de desechos peligrosos.",null,"CHALÁN"]
[3830,"Recuperación de materiales.",null,"CHAMEZA"]
[3900,"Actividades de saneamiento ambiental y otros servicios de gestión de desechos.",null,"CHAPARRAL"]
[3900,"Actividades de saneamiento ambiental y otros servicios de gestión de desechos.",null,"CHARALÁ"]
[4111,"Construcción de edificios residenciales.",null,"CHARTA"]
[4112,"Construcción de edificios no residenciales.",null,"CHÍA"]
[4210,"Construcción de carreteras y vías de ferrocarril.",null,"CHIGORODÓ"]
[4220,"Construcción de proyectos de servicio público.",null,"CHIMA"]
[4290,"Construcción de otras obras de ingeniería civil.",null,"CHIMÁ"]
[4311," Demolición.",null,"CHIMICHAGUA"]
[4312,"Preparación del terreno.",null,"CHINÁCOTA"]
[4321,"Instalaciones eléctricas.",null,"CHINAVITA"]
[4322,"Instalaciones de fontanería, calefacción y aire acondicionado.",null,"CHINCHINÁ"]
[4329,"Otras instalaciones especializadas.",null,"CHINÚ"]
[4330,"Terminación y acabado de edificios y obras de ingeniería civil.",null,"CHIPAQUE"]
[4390,"Otras actividades especializadas para la construcción de edificios y obras de ingeniería civil.",null,"CHIPATÁ"]
[4511,"Comercio de vehículos automotores nuevos.",null,"CHIQUINQUIRÁ"]
[4512,"Comercio de vehículos automotores usados.",null,"CHÍQUIZA"]
[4520,"Mantenimiento y reparación de vehículos automotores.",null,"CHIRIGUANÁ"]
[4530,"Comercio de partes, piezas (autopartes) y accesorios (lujos) para vehículos automotores.",null,"CHISCAS"]
[4541,"Comercio de motocicletas y de sus partes, piezas y accesorios.",null,"CHITA"]
[4542,"Mantenimiento y reparación de motocicletas y de sus partes y piezas.",null,"CHITAGÁ"]
[4610,"Comercio al por mayor a cambio de una retribución o por contrata.",null,"CHITARAQUE"]
[4620,"Comercio al por mayor de materias primas agropecuarias; animales vivos.",null,"CHIVATÁ"]
[4631,"Comercio al por mayor de productos alimenticios.",null,"CHIVOLO"]
[4632,"Comercio al por mayor de bebidas y tabaco.",null,"CHIVOR"]
[4641,"Comercio al por mayor de productos textiles, productos confeccionados para uso doméstico.",null,"CHOACHÍ"]
[4642,"Comercio al por mayor de prendas de vestir.",null,"CHOCONTÁ"]
[4643,"Comercio al por mayor de calzado.",null,"CICUCO"]
[4644,"Comercio al por mayor de aparatos y equipo de uso doméstico.",null,"CIÉNAGA"]
[4645,"Comercio al por mayor de productos farmacéuticos, medicinales, cosméticos y de tocador.",null,"CIÉNAGA DE ORO"]
[4649,"Comercio al por mayor de otros utensilios domésticos n.c.p.",null,"CIÉNEGA"]
[4651,"Comercio al por mayor de computadores, equipo periférico y programas de informática.",null,"CIMITARRA"]
[4652,"Comercio al por mayor de equipo, partes y piezas electrónicos y de telecomunicaciones.",null,"CIRCASIA"]
[4653,"Comercio al por mayor de maquinaria y equipo agropecuarios.",null,"CISNEROS"]
[4659,"Comercio al por mayor de otros tipos de maquinaria y equipo n.c.p.",null,"CIUDAD BOLÍVAR"]
[4661,"Comercio al por mayor de combustibles sólidos, líquidos, gaseosos y productos conexos.",null,"CLEMENCIA"]
[4662,"Comercio al por mayor de metales y productos metalíferos.",null,"COCORNÁ"]
[4663,"Comercio al por mayor de materiales de construccion, articulos de ferreteria, pinturas, productos de vidrio, equipo y materiales de fontaneria y calefaccion ",null,"COELLO"]
[4664,"Comercio al por mayor de productos químicos básicos, cauchos y plásticos en formas primarias y productos químicos de uso agropecuario.",null,"COGUA"]
[4665,"Comercio al por mayor de desperdicios, desechos y chatarra.",null,"COLOMBIA"]
[4669,"Comercio al por mayor de otros productos n.c.p.",null,"COLÓN"]
[4690,"Comercio al por mayor no especializado.",null,"COLÓN"]
[4711,"Comercio al por menor en establecimientos no especializados con surtido compuesto principalmente por alimentos, bebidas o tabaco.",null,"COLOSO"]
[4719,"Comercio al por menor en establecimientos no especializados, con surtido compuesto principalmente por productos diferentes de alimentos (víveres en general), bebidas y tabaco.",null,"CÓMBITA"]
[4721,"Comercio al por menor de productos agrícolas para el consumo en establecimientos especializados.",null,"CONCEPCIÓN"]
[4722,"Comercio al por menor de leche, productos lácteos y huevos, en establecimientos especializados.",null,"CONCEPCIÓN"]
[4723,"Comercio al por menor de carnes (incluye aves de corral), productos cárnicos, pescados y productos de mar, en establecimientos especializados.",null,"CONCORDIA"]
[4724,"Comercio al por menor de bebidas y productos del tabaco, en establecimientos especializados.",null,"CONCORDIA"]
[4729,"Comercio al por menor de otros productos alimenticios n.c.p., en establecimientos especializados.",null,"CONDOTO"]
[4731,"Comercio al por menor de combustible para automotores.",null,"CONFINES"]
[4732,"Comercio al por menor de lubricantes (aceites, grasas), aditivos y productos de limpieza para vehículos automotores.",null,"CONSACA"]
[4741,"Comercio al por menor de computadores, equipos periféricos, programas de informática y equipos de telecomunicaciones en establecimientos especializados.",null,"CONTADERO"]
[4742,"Comercio al por menor de equipos y aparatos de sonido y de video, en establecimientos especializados.",null,"CONTRATACIÓN"]
[4751,"Comercio al por menor de productos textiles en establecimientos especializados.",null,"CONVENCIÓN"]
[4752,"Comercio al por menor de artículos de ferretería, pinturas y productos de vidrio en establecimientos especializados.",null,"COPACABANA"]
[4753,"Comercio al por menor de tapices, alfombras y cubrimientos para paredes y pisos en establecimientos especializados.",null,"COPER"]
[4754,"Comercio al por menor de electrodomésticos y gasodomésticos de uso doméstico, muebles y equipos de iluminación.",null,"CÓRDOBA"]
[4755,"Comercio al por menor de artículos y utensilios de uso doméstico.",null,"CÓRDOBA"]
[4759,"Comercio al por menor de otros artículos domésticos en establecimientos especializados.",null,"CÓRDOBA"]
[4761,"Comercio al por menor de libros, periódicos, materiales y artículos de papelería y escritorio, en establecimientos especializados.",null,"CORINTO"]
[4762,"Comercio al por menor de artículos deportivos, en establecimientos especializados.",null,"COROMORO"]
[4769,"Comercio al por menor de otros artículos culturales y de entretenimiento n.c.p. en establecimientos especializados.",null,"COROZAL"]
[4771,"Comercio al por menor de prendas de vestir y sus accesorios (incluye artículos de piel) en establecimientos especializados.",null,"CORRALES"]
[4772,"Comercio al por menor de todo tipo de calzado y artículos de cuero y sucedáneos del cuero en establecimientos especializados.",null,"COTA"]
[4773,"Comercio al por menor de productos farmacéuticos y medicinales, cosméticos y artículos de tocador en establecimientos especializados.",null,"COTORRA"]
[4774,"Comercio al por menor de otros productos nuevos en establecimientos especializados.",null,"COVARACHÍA"]
[4775,"Comercio al por menor de artículos de segunda mano.",null,"COVEÑAS"]
[4781,"Comercio al por menor de alimentos, bebidas y tabaco, en puestos de venta móviles.",null,"COYAIMA"]
[4782,"Comercio al por menor de productos textiles, prendas de vestir y calzado, en puestos de venta móviles.",null,"CRAVO NORTE"]
[4789,"Comercio al por menor de otros productos en puestos de venta móviles.",null,"CUASPUD"]
[4791,"Comercio al por menor realizado a través de internet.",null,"CUBARÁ"]
[4792,"Comercio al por menor realizado a través de casas de venta o por correo.",null,"CUBARRAL"]
[4799,"Otros tipos de comercio al por menor no realizado en establecimientos, puestos de venta o mercados.",null,"CUCAITA"]
[4921,"Transporte de pasajeros.",null,"CUCUNUBÁ"]
[4922,"Transporte mixto.",null,"CÚCUTA"]
[4923,"Transporte de carga por carretera.",null,"CUCUTILLA"]
[4930,"Transporte por tuberías.",null,"CUÍTIVA"]
[5021,"Transporte fluvial de pasajeros.",null,"CUMARAL"]
[5022,"Transporte fluvial de carga.",null,"CUMARIBO"]
[5111,"Transporte aéreo nacional de pasajeros.",null,"CUMBAL"]
[5112,"Transporte aéreo internacional de pasajeros.",null,"CUMBITARA"]
[5121,"Transporte aéreo nacional de carga.",null,"CUNDAY"]
[5122,"Transporte aéreo internacional de carga.",null,"CURILLO"]
[5210,"Almacenamiento y depósito.",null,"CURITÍ"]
[5221,"Actividades de estaciones, vías y servicios complementarios para el transporte terrestre.",null,"CURUMANÍ"]
[5222,"Actividades de puertos y servicios complementarios para el transporte acuático.",null,"DABEIBA"]
[5223,"Actividades de aeropuertos, servicios de navegación aérea y demás actividades conexas al transporte aéreo.",null,"DAGUA"]
[5224,"Manipulación de carga.",null,"DIBULLA"]
[5229,"Otras actividades complementarias al transporte. (Incluye actividades de transporte a la industria petrolera)",null,"DISTRACCIÓN"]
[5310,"Actividades postales nacionales.",null,"DOLORES"]
[5320,"Actividades de mensajería.",null,"DONMATÍAS"]
[5511,"Alojamiento en hoteles.",null,"DOSQUEBRADAS"]
[5512,"Alojamiento en apartahoteles.",null,"DUITAMA"]
[5513,"Alojamiento en centros vacacionales.",null,"DURANIA"]
[5514,"Alojamiento rural.",null,"EBÉJICO"]
[5519,"Otros tipos de alojamientos para visitantes.",null,"EL ÁGUILA"]
[5520,"Actividades de zonas de camping y parques para vehículos recreacionales.",null,"EL BAGRE"]
[5530,"Servicio por horas",null,"EL BANCO"]
[5590,"Otros tipos de alojamiento n.c.p.",null,"EL CAIRO"]
[5611,"Expendio a la mesa de comidas preparadas.",null,"EL CALVARIO"]
[5612,"Expendio por autoservicio de comidas preparadas.",null,"EL CANTÓN DEL SAN PABLO"]
[5613,"Expendio de comidas preparadas en cafeterías.",null,"EL CARMEN"]
[5619,"Otros tipos de expendio de comidas preparadas n.c.p.",null,"EL CARMEN DE ATRATO"]
[5621,"Catering para eventos.",null,"EL CARMEN DE BOLÍVAR"]
[5629,"Actividades de otros servicios de comidas.",null,"EL CARMEN DE CHUCURÍ"]
[5630,"Expendio de bebidas alcohólicas para el consumo dentro del establecimiento.",null,"EL CARMEN DE VIBORAL"]
[5812,"Edición de directorios y listas de correo.",null,"EL CASTILLO"]
[5813,"Edición de periódicos, revistas y otras publicaciones periódicas.",null,"EL CERRITO"]
[5819,"Otros trabajos de edición.",null,"EL CHARCO"]
[5820,"Edición de programas de informática (software).",null,"EL COCUY"]
[5911,"Actividades de producción de películas cinematográficas, videos, programas, anuncios y comerciales de televisión.",null,"EL COLEGIO"]
[5912,"Actividades de posproducción de películas cinematográficas, videos, programas, anuncios y comerciales de televisión.",null,"EL COPEY"]
[5913,"Actividades de distribución de películas cinematográficas, videos, programas, anuncios y comerciales de televisión.",null,"EL DONCELLO"]
[5914,"Actividades de exhibición de películas cinematográficas y videos.",null,"EL DORADO"]
[5920,"Actividades de grabación de sonido y edición de música.",null,"EL DOVIO"]
[6010,"Actividades de programación y transmisión en el servicio de radiodifusión sonora.",null,"EL ENCANTO"]
[6020,"Actividades de programación y transmisión de televisión.",null,"EL ESPINO"]
[6110,"Actividades de telecomunicaciones alámbricas.",null,"EL GUACAMAYO"]
[6120,"Actividades de telecomunicaciones inalámbricas.",null,"EL GUAMO"]
[6130,"Actividades de telecomunicación satelital.",null,"EL LITORAL DEL SAN JUAN"]
[6190,"Otras actividades de telecomunicaciones.",null,"EL MOLINO"]
[6201,"Actividades de desarrollo de sistemas informáticos (planificación, análisis, diseño, programación, pruebas).",null,"EL PASO"]
[6202,"Actividades de consultoría informática y actividades de administración de instalaciones informáticas.",null,"EL PAUJIL"]
[6209,"Otras actividades de tecnologías de información y actividades de servicios informáticos.",null,"EL PEÑOL"]
[6311,"Procesamiento de datos, alojamiento (hosting) y actividades relacionadas.",null,"EL PEÑÓN"]
[6312,"Portales web.",null,"EL PEÑÓN"]
[6391,"Actividades de agencias de noticias.",null,"EL PEÑÓN"]
[6399,"Otras actividades de servicio de información n.c.p.",null,"EL PIÑON"]
[6411,"Banco Central.",null,"EL PLAYÓN"]
[6412,"Bancos comerciales.",null,"EL RETÉN"]
[6421,"Actividades de las corporaciones financieras.",null,"EL RETORNO"]
[6422,"Actividades de las compañías de financiamiento.",null,"EL ROBLE"]
[6423,"Banca de segundo piso.",null,"EL ROSAL"]
[6424,"Actividades de las cooperativas financieras.",null,"EL ROSARIO"]
[6431,"Fideicomisos, fondos y entidades financieras similares.",null,"EL SANTUARIO"]
[6432,"Fondos de cesantías.",null,"EL TABLÓN DE GÓMEZ"]
[6491,"Leasing financiero (arrendamiento financiero).",null,"EL TAMBO"]
[6492,"Actividades financieras de fondos de empleados y otras formas asociativas del sector solidario.",null,"EL TAMBO"]
[6493,"Actividades de compra de cartera o factoring.",null,"EL TARRA"]
[6494,"Otras actividades de distribución de fondos.",null,"EL ZULIA"]
[6495,"Instituciones especiales oficiales.",null,"ELÍAS"]
[6499,"Otras actividades de servicio financiero, excepto las de seguros y pensiones n.c.p.",null,"ENCINO"]
[6511,"Seguros generales.",null,"ENCISO"]
[6512,"Seguros de vida.",null,"ENTRERRIOS"]
[6513,"Reaseguros.",null,"ENVIGADO"]
[6514,"Capitalización.",null,"ESPINAL"]
[6521,"Servicios de seguros sociales de salud.",null,"FACATATIVÁ"]
[6522,"Servicios de seguros sociales de riesgos profesionales.",null,"FALAN"]
[6531,"Régimen de prima media con prestación definida (RPM).",null,"FILADELFIA"]
[6532,"Régimen de ahorro individual (RAI).",null,"FILANDIA"]
[6611,"Administración de mercados financieros.",null,"FIRAVITOBA"]
[6612,"Corretaje de valores y de contratos de productos básicos.",null,"FLANDES"]
[6613,"Otras actividades relacionadas con el mercado de valores.",null,"FLORENCIA"]
[6614,"Actividades de las casas de cambio.",null,"FLORENCIA"]
[6615,"Actividades de los profesionales de compra y venta de divisas.",null,"FLORESTA"]
[6619,"Otras actividades auxiliares de las actividades de servicios financieros n.c.p.",null,"FLORIÁN"]
[6621,"Actividades de agentes y corredores de seguros",null,"FLORIDA"]
[6629,"Evaluación de riesgos y daños, y otras actividades de servicios auxiliares",null,"FLORIDABLANCA"]
[6630,"Actividades de administración de fondos.",null,"FOMEQUE"]
[6810,"Actividades inmobiliarias realizadas con bienes propios o arrendados.",null,"FONSECA"]
[6820,"Actividades inmobiliarias realizadas a cambio de una retribución o por contrata.",null,"FORTUL"]
[6910,"Actividades jurídicas.",null,"FOSCA"]
[6920,"Actividades de contabilidad, teneduría de libros, auditoría financiera y asesoría tributaria.",null,"FRANCISCO PIZARRO"]
[7010,"Actividades de administración empresarial.",null,"FREDONIA"]
[7020,"Actividades de consultaría de gestión.",null,"FRESNO"]
[7110,"Actividades de arquitectura e ingeniería y otras actividades conexas de consultoría técnica.",null,"FRONTINO"]
[7120,"Ensayos y análisis técnicos.",null,"FUENTE DE ORO"]
[7310,"Publicidad.",null,"FUNDACIÓN"]
[7320,"Estudios de mercado y realización de encuestas de opinión pública.",null,"FUNES"]
[7410,"Actividades especializadas de diseño.",null,"FUNZA"]
[7420,"Actividades de fotografía.",null,"FÚQUENE"]
[7490,"Otras actividades profesionales, científicas y técnicas n.c.p.",null,"FUSAGASUGÁ"]
[7500,"Actividades veterinarias.",null,"GACHALA"]
[7710,"Alquiler y arrendamiento de vehículos automotores.",null,"GACHANCIPÁ"]
[7721,"Alquiler y arrendamiento de equipo recreativo y deportivo.",null,"GACHANTIVÁ"]
[7722,"Alquiler de videos y discos.",null,"GACHETÁ"]
[7729,"Alquiler y arrendamiento de otros efectos personales y enseres domésticos n.c.p.",null,"GALÁN"]
[7730,"Alquiler y arrendamiento de otros tipos de maquinaria, equipo y bienes tangibles n.c.p.",null,"GALAPA"]
[7740,"Arrendamiento de propiedad intelectual y productos similares, excepto obras protegidas por derechos de autor.",null,"GALERAS"]
[7810,"Actividades de agencias de empleo.",null,"GAMA"]
[7820,"Actividades de agencias de empleo temporal.",null,"GAMARRA"]
[7830,"Otras actividades de suministro de recurso humano.",null,"GAMBITA"]
[7911,"Actividades de las agencias de viaje.",null,"GAMEZA"]
[7912,"Actividades de operadores turísticos.",null,"GARAGOA"]
[7990,"Otros servicios de reserva y actividades relacionadas.",null,"GARZÓN"]
[8010,"Actividades de seguridad privada.",null,"GÉNOVA"]
[8020,"Actividades de servicios de sistemas de seguridad.",null,"GIGANTE"]
[8030,"Actividades de detectives e investigadores privados.",null,"GINEBRA"]
[8110,"Actividades combinadas de apoyo a instalaciones.",null,"GIRALDO"]
[8121,"Limpieza general interior de edificios.",null,"GIRARDOT"]
[8129,"Otras actividades de limpieza de edificios e instalaciones industriales.",null,"GIRARDOTA"]
[8130,"Actividades de paisajismo y servicios de mantenimiento conexos.",null,"GIRÓN"]
[8211,"Actividades combinadas de servicios administrativos de oficina.",null,"GÓMEZ PLATA"]
[8219,"Fotocopiado, preparación de documentos y otras actividades especializadas de apoyo a oficina.",null,"GONZÁLEZ"]
[8220,"Actividades de centros de llamadas (Call center).",null,"GRAMALOTE"]
[8230,"Organización de convenciones y eventos comerciales.",null,"GRANADA"]
[8291,"Actividades de agencias de cobranza y oficinas de calificación crediticia.",null,"GRANADA"]
[8292,"Actividades de envase y empaque.",null,"GRANADA"]
[8299,"Otras actividades de servicio de apoyo a las empresas n.c.p.",null,"GUACA"]
[8511,"Educación de la primera infancia.",null,"GUACAMAYAS"]
[8512,"Educación preescolar.",null,"GUACARÍ"]
[8513,"Educación básica primaria.",null,"GUACHENÉ"]
[8521,"Educación básica secundaria.",null,"GUACHETÁ"]
[8522,"Educación media académica.",null,"GUACHUCAL"]
[8523,"Educación media técnica y de formación laboral.",null,"GUADALAJARA DE BUGA"]
[8530,"Establecimientos que combinan diferentes niveles de educación.",null,"GUADALUPE"]
[8541,"Educación técnica profesional.",null,"GUADALUPE"]
[8542,"Educación tecnológica.",null,"GUADALUPE"]
[8543,"Educación de instituciones universitarias o de escuelas tecnológicas.",null,"GUADUAS"]
[8544,"Educación de universidades.",null,"GUAITARILLA"]
[8551,"Formación académica no formal.",null,"GUALMATÁN"]
[8559,"Otros tipos de educación n.c.p.",null,"GUAMAL"]
[8560,"Actividades de apoyo a la educación.",null,"GUAMAL"]
[8610,"Actividades de hospitales y clínicas, con internación.",null,"GUAMO"]
[8621,"Actividades de la práctica médica, sin internación.",null,"GUAPI"]
[8622,"Actividades de la práctica odontológica.",null,"GUAPOTÁ"]
[8691,"Actividades de apoyo diagnóstico.",null,"GUARANDA"]
[8692,"Actividades de apoyo terapéutico.",null,"GUARNE"]
[8699,"Otras actividades de atención de la salud humana.",null,"GUASCA"]
[8710,"Actividades de atención residencial medicalizada de tipo general.",null,"GUATAPE"]
[8720,"Actividades de atención residencial, para el cuidado de pacientes con retardo mental, enfermedad mental y consumo de sustancias psicoactivas.",null,"GUATAQUÍ"]
[8730,"Actividades de atención en instituciones para el cuidado de personas mayores y/o discapacitadas.",null,"GUATAVITA"]
[8790,"Otras actividades de atención en instituciones con alojamiento",null,"GUATEQUE"]
[8810,"Actividades de asistencia social sin alojamiento para personas mayores y discapacitadas.",null,"GUÁTICA"]
[8890,"Otras actividades de asistencia social sin alojamiento.",null,"GUAVATÁ"]
[9001,"Creación literaria.",null,"GUAYABAL DE SIQUIMA"]
[9002,"Creación musical.",null,"GUAYABETAL"]
[9003,"Creación teatral.",null,"GUAYATÁ"]
[9004,"Creación audiovisual.",null,"GÜEPSA"]
[9005,"Artes plásticas y visuales.",null,"GÜICÁN"]
[9006,"Actividades teatrales.",null,"GUTIÉRREZ"]
[9007,"Actividades de espectáculos musicales en vivo.",null,"HACARÍ"]
[9008,"Otras actividades de espectáculos en vivo.",null,"HATILLO DE LOBA"]
[9101,"Actividades de bibliotecas y archivos.",null,"HATO"]
[9102,"Actividades y funcionamiento de museos, conservación de edificios y sitios históricos.",null,"HATO COROZAL"]
[9103,"Actividades de jardines botánicos, zoológicos y reservas naturales.",null,"HATONUEVO"]
[9200,"Actividades de juegos de azar y apuestas.",null,"HELICONIA"]
[9319,"Otras actividades deportivas.",null,"HERRÁN"]
[9321,"Actividades de parques de atracciones y parques temáticos.",null,"HERVEO"]
[9329,"Otras actividades recreativas y de esparcimiento n.c.p.",null,"HISPANIA"]
[9411,"Actividades de asociaciones empresariales y de empleadores",null,"HOBO"]
[9412,"Actividades de asociaciones profesionales",null,"HONDA"]
[9420,"Actividades de sindicatos de empleados.",null,"IBAGUÉ"]
[9491,"Actividades de asociaciones religiosas.",null,"ICONONZO"]
[9492,"Actividades de asociaciones políticas.",null,"ILES"]
[9499,"Actividades de otras asociaciones n.c.p.",null,"IMUÉS"]
[9511,"Mantenimiento y reparación de computadores y de equipo periférico.",null,"INÍRIDA"]
[9512,"Mantenimiento y reparación de equipos de comunicación.",null,"INZÁ"]
[9521,"Mantenimiento y reparación de aparatos electrónicos de consumo.",null,"IPIALES"]
[9522,"Mantenimiento y reparación de aparatos y equipos domésticos y de jardinería.",null,"IQUIRA"]
[9523,"Reparación de calzado y artículos de cuero.",null,"ISNOS"]
[9524,"Reparación de muebles y accesorios para el hogar.",null,"ISTMINA"]
[9529,"Mantenimiento y reparación de otros efectos personales y enseres domésticos.",null,"ITAGUI"]
[9601,"Lavado y limpieza, incluso la limpieza en seco, de productos textiles y de piel.",null,"ITUANGO"]
[9602,"Peluquería y otros tratamientos de belleza.",null,"IZA"]
[9603,"Pompas fúnebres y actividades relacionadas.",null,"JAMBALÓ"]
[9609,"Otras actividades de servicios personales n.c.p.",null,"JAMUNDÍ"]
[9700,"Actividades de los hogares individuales como empleadores de personal doméstico.",null,"JARDÍN"]
[9900,"Actividades de organizaciones y entidades extraterritoriales.",null,"JENESANO"]
[null,null,null,"JERICÓ"]
["Tarifa por mil","CLASIFICACIÓN",null,"JERICÓ"]
[2.5,"RÉGIMEN COMÚN",null,"JERUSALÉN",null,1]
[3,"R. SIMPLIFICADO",null,"JESÚS MARÍA",null,2]
[{"$f":"+A455+0.5","v":3.5},null,null,"JORDÁN",null,3]
[{"$f":"+A456+0.5","v":4},null,null,"JUAN DE ACOSTA",null,4]
[{"$f":"+A457+0.5","v":4.5},null,null,"JUNÍN",null,5]
[5,null,null,"JURADÓ",null,6]
[5.5,null,null,"LA APARTADA",null,7]
[6,null,null,"LA ARGENTINA",null,8]
[6.5,null,null,"LA BELLEZA",null,9]
[7,null,null,"LA CALERA",null,10]
[7.5,null,null,"LA CAPILLA"]
[8,null,null,"LA CEJA"]
[8.5,null,null,"LA CELIA"]
[9,null,null,"LA CHORRERA"]
[9.5,null,null,"LA CRUZ"]
[10,null,null,"LA CUMBRE"]
[12,null,null,"LA DORADA"]
[14,null,null,"LA ESPERANZA"]
["DESCUENTO POR PRONTO PAGO",null,null,"LA ESTRELLA"]
[null,null,null,"LA FLORIDA"]
[null,null,null,"LA GLORIA"]
[null,null,null,"LA GUADALUPE"]
[0,null,null,"LA JAGUA DE IBIRICO"]
[0.1,null,null,"LA JAGUA DEL PILAR"]
[null,null,null,"LA LLANADA"]
["EXENCION ZOMAC",null,null,"LA MACARENA"]
[null,null,null,"LA MERCED"]
[null,null,null,"LA MESA"]
[null,null,null,"LA MONTAÑITA"]
[0,null,null,"LA PALMA"]
[0.25,null,null,"LA PAZ"]
[0.5,null,null,"LA PAZ"]
[0.75,null,null,"LA PEDRERA"]
[null,null,null,"LA PEÑA"]
["APLICACIÓN DE LOS PRINCIPIOS DE LESIVIDAD, PROPORCIONALIDAD, GRADUALIDAD Y FAVORAVILIDAD",null,null,"LA PINTADA"]
[null,null,null,"LA PLATA"]
[null,null,null,"LA PLAYA"]
[null,null,null,"LA PRIMAVERA"]
[0,null,null,"LA SALINA"]
[0.25,null,null,"LA SIERRA"]
[0.5,null,null,"LA TEBAIDA"]
[null,null,null,"LA TOLA"]
[null,null,null,"LA UNIÓN"]
[null,null,null,"LA UNIÓN"]
[null,null,null,"LA UNIÓN"]
[null,null,null,"LA UNIÓN"]
[null,null,null,"LA UVITA"]
[null,null,null,"LA VEGA"]
[null,null,null,"LA VEGA"]
[null,null,null,"LA VICTORIA"]
[null,null,null,"LA VICTORIA"]
[null,null,null,"LA VICTORIA"]
[null,null,null,"LA VIRGINIA"]
[null,null,null,"LABATECA"]
[null,null,null,"LABRANZAGRANDE"]
[null,null,null,"LANDÁZURI"]
[null,null,null,"LEBRIJA"]
[null,null,null,"LEIVA"]
[null,null,null,"LEJANÍAS"]
[null,null,null,"LENGUAZAQUE"]
[null,null,null,"LÉRIDA"]
[null,null,null,"LETICIA"]
[null,null,null,"LÍBANO"]
[null,null,null,"LIBORINA"]
[null,null,null,"LINARES"]
[null,null,null,"LLORÓ"]
[null,null,null,"LÓPEZ"]
[null,null,null,"LORICA"]
[null,null,null,"LOS ANDES"]
[null,null,null,"LOS CÓRDOBAS"]
[null,null,null,"LOS PALMITOS"]
[null,null,null,"LOS PATIOS"]
[null,null,null,"LOS SANTOS"]
[null,null,null,"LOURDES"]
[null,null,null,"LURUACO"]
[null,null,null,"MACANAL"]
[null,null,null,"MACARAVITA"]
[null,null,null,"MACEO"]
[null,null,null,"MACHETA"]
[null,null,null,"MADRID"]
[null,null,null,"MAGANGUÉ"]
[null,null,null,"MAGÜI"]
[null,null,null,"MAHATES"]
[null,null,null,"MAICAO"]
[null,null,null,"MAJAGUAL"]
[null,null,null,"MÁLAGA"]
[null,null,null,"MALAMBO"]
[null,null,null,"MALLAMA"]
[null,null,null,"MANATÍ"]
[null,null,null,"MANAURE"]
[null,null,null,"MANAURE"]
[null,null,null,"MANÍ"]
[null,null,null,"MANIZALES"]
[null,null,null,"MANTA"]
[null,null,null,"MANZANARES"]
[null,null,null,"MAPIRIPÁN"]
[null,null,null,"MAPIRIPANA"]
[null,null,null,"MARGARITA"]
[null,null,null,"MARÍA LA BAJA"]
[null,null,null,"MARINILLA"]
[null,null,null,"MARIPÍ"]
[null,null,null,"MARMATO"]
[null,null,null,"MARQUETALIA"]
[null,null,null,"MARSELLA"]
[null,null,null,"MARULANDA"]
[null,null,null,"MATANZA"]
[null,null,null,"MEDELLÍN"]
[null,null,null,"MEDINA"]
[null,null,null,"MEDIO ATRATO"]
[null,null,null,"MEDIO BAUDÓ"]
[null,null,null,"MEDIO SAN JUAN"]
[null,null,null,"MELGAR"]
[null,null,null,"MERCADERES"]
[null,null,null,"MESETAS"]
[null,null,null,"MILÁN"]
[null,null,null,"MIRAFLORES"]
[null,null,null,"MIRAFLORES"]
[null,null,null,"MIRANDA"]
[null,null,null,"MIRITI - PARANÁ"]
[null,null,null,"MISTRATÓ"]
[null,null,null,"MITÚ"]
[null,null,null,"MOCOA"]
[null,null,null,"MOGOTES"]
[null,null,null,"MOLAGAVITA"]
[null,null,null,"MOMIL"]
[null,null,null,"MOMPÓS"]
[null,null,null,"MONGUA"]
[null,null,null,"MONGUÍ"]
[null,null,null,"MONIQUIRÁ"]
[null,null,null,"MONTEBELLO"]
[null,null,null,"MONTECRISTO"]
[null,null,null,"MONTELÍBANO"]
[null,null,null,"MONTENEGRO"]
[null,null,null,"MONTERÍA"]
[null,null,null,"MONTERREY"]
[null,null,null,"MOÑITOS"]
[null,null,null,"MORALES"]
[null,null,null,"MORALES"]
[null,null,null,"MORELIA"]
[null,null,null,"MORICHAL"]
[null,null,null,"MORROA"]
[null,null,null,"MOSQUERA"]
[null,null,null,"MOSQUERA"]
[null,null,null,"MOTAVITA"]
[null,null,null,"MURILLO"]
[null,null,null,"MURINDÓ"]
[null,null,null,"MUTATÁ"]
[null,null,null,"MUTISCUA"]
[null,null,null,"MUZO"]
[null,null,null,"NARIÑO"]
[null,null,null,"NARIÑO"]
[null,null,null,"NARIÑO"]
[null,null,null,"NÁTAGA"]
[null,null,null,"NATAGAIMA"]
[null,null,null,"NECHÍ"]
[null,null,null,"NECOCLÍ"]
[null,null,null,"NEIRA"]
[null,null,null,"NEIVA"]
[null,null,null,"NEMOCÓN"]
[null,null,null,"NILO"]
[null,null,null,"NIMAIMA"]
[null,null,null,"NOBSA"]
[null,null,null,"NOCAIMA"]
[null,null,null,"NORCASIA"]
[null,null,null,"NOROSÍ"]
[null,null,null,"NÓVITA"]
[null,null,null,"NUEVA GRANADA"]
[null,null,null,"NUEVO COLÓN"]
[null,null,null,"NUNCHÍA"]
[null,null,null,"NUQUÍ"]
[null,null,null,"OBANDO"]
[null,null,null,"OCAMONTE"]
[null,null,null,"OCAÑA"]
[null,null,null,"OIBA"]
[null,null,null,"OICATÁ"]
[null,null,null,"OLAYA"]
[null,null,null,"OLAYA HERRERA"]
[null,null,null,"ONZAGA"]
[null,null,null,"OPORAPA"]
[null,null,null,"ORITO"]
[null,null,null,"OROCUÉ"]
[null,null,null,"ORTEGA"]
[null,null,null,"OSPINA"]
[null,null,null,"OTANCHE"]
[null,null,null,"OVEJAS"]
[null,null,null,"PACHAVITA"]
[null,null,null,"PACHO"]
[null,null,null,"PACOA"]
[null,null,null,"PÁCORA"]
[null,null,null,"PADILLA"]
[null,null,null,"PAEZ"]
[null,null,null,"PÁEZ"]
[null,null,null,"PAICOL"]
[null,null,null,"PAILITAS"]
[null,null,null,"PAIME"]
[null,null,null,"PAIPA"]
[null,null,null,"PAJARITO"]
[null,null,null,"PALERMO"]
[null,null,null,"PALESTINA"]
[null,null,null,"PALESTINA"]
[null,null,null,"PALMAR"]
[null,null,null,"PALMAR DE VARELA"]
[null,null,null,"PALMAS DEL SOCORRO"]
[null,null,null,"PALMIRA"]
[null,null,null,"PALMITO"]
[null,null,null,"PALOCABILDO"]
[null,null,null,"PAMPLONA"]
[null,null,null,"PAMPLONITA"]
[null,null,null,"PANA PANA"]
[null,null,null,"PANDI"]
[null,null,null,"PANQUEBA"]
[null,null,null,"PAPUNAUA"]
[null,null,null,"PÁRAMO"]
[null,null,null,"PARATEBUENO"]
[null,null,null,"PASCA"]
[null,null,null,"PASTO"]
[null,null,null,"PATÍA"]
[null,null,null,"PAUNA"]
[null,null,null,"PAYA"]
[null,null,null,"PAZ DE ARIPORO"]
[null,null,null,"PAZ DE RÍO"]
[null,null,null,"PEDRAZA"]
[null,null,null,"PELAYA"]
[null,null,null,"PENSILVANIA"]
[null,null,null,"PEÑOL"]
[null,null,null,"PEQUE"]
[null,null,null,"PEREIRA"]
[null,null,null,"PESCA"]
[null,null,null,"PIAMONTE"]
[null,null,null,"PIEDECUESTA"]
[null,null,null,"PIEDRAS"]
[null,null,null,"PIENDAMÓ"]
[null,null,null,"PIJAO"]
[null,null,null,"PIJIÑO DEL CARMEN"]
[null,null,null,"PINCHOTE"]
[null,null,null,"PINILLOS"]
[null,null,null,"PIOJÓ"]
[null,null,null,"PISBA"]
[null,null,null,"PITAL"]
[null,null,null,"PITALITO"]
[null,null,null,"PIVIJAY"]
[null,null,null,"PLANADAS"]
[null,null,null,"PLANETA RICA"]
[null,null,null,"PLATO"]
[null,null,null,"POLICARPA"]
[null,null,null,"POLONUEVO"]
[null,null,null,"PONEDERA"]
[null,null,null,"POPAYÁN"]
[null,null,null,"PORE"]
[null,null,null,"POTOSÍ"]
[null,null,null,"PRADERA"]
[null,null,null,"PRADO"]
[null,null,null,"PROVIDENCIA"]
[null,null,null,"PROVIDENCIA"]
[null,null,null,"PUEBLO BELLO"]
[null,null,null,"PUEBLO NUEVO"]
[null,null,null,"PUEBLO RICO"]
[null,null,null,"PUEBLORRICO"]
[null,null,null,"PUEBLOVIEJO"]
[null,null,null,"PUENTE NACIONAL"]
[null,null,null,"PUERRES"]
[null,null,null,"PUERTO ALEGRÍA"]
[null,null,null,"PUERTO ARICA"]
[null,null,null,"PUERTO ASÍS"]
[null,null,null,"PUERTO BERRÍO"]
[null,null,null,"PUERTO BOYACÁ"]
[null,null,null,"PUERTO CAICEDO"]
[null,null,null,"PUERTO CARREÑO"]
[null,null,null,"PUERTO COLOMBIA"]
[null,null,null,"PUERTO COLOMBIA"]
[null,null,null,"PUERTO CONCORDIA"]
[null,null,null,"PUERTO ESCONDIDO"]
[null,null,null,"PUERTO GAITÁN"]
[null,null,null,"PUERTO GUZMÁN"]
[null,null,null,"PUERTO LEGUÍZAMO"]
[null,null,null,"PUERTO LIBERTADOR"]
[null,null,null,"PUERTO LLERAS"]
[null,null,null,"PUERTO LÓPEZ"]
[null,null,null,"PUERTO NARE"]
[null,null,null,"PUERTO NARIÑO"]
[null,null,null,"PUERTO PARRA"]
[null,null,null,"PUERTO RICO"]
[null,null,null,"PUERTO RICO"]
[null,null,null,"PUERTO RONDÓN"]
[null,null,null,"PUERTO SALGAR"]
[null,null,null,"PUERTO SANTANDER"]
[null,null,null,"PUERTO SANTANDER"]
[null,null,null,"PUERTO TEJADA"]
[null,null,null,"PUERTO TRIUNFO"]
[null,null,null,"PUERTO WILCHES"]
[null,null,null,"PULÍ"]
[null,null,null,"PUPIALES"]
[null,null,null,"PURACÉ"]
[null,null,null,"PURIFICACIÓN"]
[null,null,null,"PURÍSIMA"]
[null,null,null,"QUEBRADANEGRA"]
[null,null,null,"QUETAME"]
[null,null,null,"QUIBDÓ"]
[null,null,null,"QUIMBAYA"]
[null,null,null,"QUINCHÍA"]
[null,null,null,"QUÍPAMA"]
[null,null,null,"QUIPILE"]
[null,null,null,"RAGONVALIA"]
[null,null,null,"RAMIRIQUÍ"]
[null,null,null,"RÁQUIRA"]
[null,null,null,"RECETOR"]
[null,null,null,"REGIDOR"]
[null,null,null,"REMEDIOS"]
[null,null,null,"REMOLINO"]
[null,null,null,"REPELÓN"]
[null,null,null,"RESTREPO"]
[null,null,null,"RESTREPO"]
[null,null,null,"RETIRO"]
[null,null,null,"RICAURTE"]
[null,null,null,"RICAURTE"]
[null,null,null,"RÍO DE ORO"]
[null,null,null,"RÍO IRÓ"]
[null,null,null,"RÍO QUITO"]
[null,null,null,"RÍO VIEJO"]
[null,null,null,"RIOBLANCO"]
[null,null,null,"RIOFRÍO"]
[null,null,null,"RIOHACHA"]
[null,null,null,"RIONEGRO"]
[null,null,null,"RIONEGRO"]
[null,null,null,"RIOSUCIO"]
[null,null,null,"RIOSUCIO"]
[null,null,null,"RISARALDA"]
[null,null,null,"RIVERA"]
[null,null,null,"ROBERTO PAYÁN"]
[null,null,null,"ROLDANILLO"]
[null,null,null,"RONCESVALLES"]
[null,null,null,"RONDÓN"]
[null,null,null,"ROSAS"]
[null,null,null,"ROVIRA"]
[null,null,null,"SABANA DE TORRES"]
[null,null,null,"SABANAGRANDE"]
[null,null,null,"SABANALARGA"]
[null,null,null,"SABANALARGA"]
[null,null,null,"SABANALARGA"]
[null,null,null,"SABANAS DE SAN ANGEL"]
[null,null,null,"SABANETA"]
[null,null,null,"SABOYÁ"]
[null,null,null,"SÁCAMA"]
[null,null,null,"SÁCHICA"]
[null,null,null,"SAHAGÚN"]
[null,null,null,"SALADOBLANCO"]
[null,null,null,"SALAMINA"]
[null,null,null,"SALAMINA"]
[null,null,null,"SALAZAR"]
[null,null,null,"SALDAÑA"]
[null,null,null,"SALENTO"]
[null,null,null,"SALGAR"]
[null,null,null,"SAMACÁ"]
[null,null,null,"SAMANÁ"]
[null,null,null,"SAMANIEGO"]
[null,null,null,"SAMPUÉS"]
[null,null,null,"SAN AGUSTÍN"]
[null,null,null,"SAN ALBERTO"]
[null,null,null,"SAN ANDRÉS"]
[null,null,null,"SAN ANDRÉS"]
[null,null,null,"SAN ANDRÉS DE CUERQUÍA"]
[null,null,null,"SAN ANDRES DE TUMACO"]
[null,null,null,"SAN ANDRÉS SOTAVENTO"]
[null,null,null,"SAN ANTERO"]
[null,null,null,"SAN ANTONIO"]
[null,null,null,"SAN ANTONIO DEL TEQUENDAMA"]
[null,null,null,"SAN BENITO"]
[null,null,null,"SAN BENITO ABAD"]
[null,null,null,"SAN BERNARDO"]
[null,null,null,"SAN BERNARDO"]
[null,null,null,"SAN BERNARDO DEL VIENTO"]
[null,null,null,"SAN CALIXTO"]
[null,null,null,"SAN CARLOS"]
[null,null,null,"SAN CARLOS"]
[null,null,null,"SAN CARLOS DE GUAROA"]
[null,null,null,"SAN CAYETANO"]
[null,null,null,"SAN CAYETANO"]
[null,null,null,"SAN CRISTÓBAL"]
[null,null,null,"SAN DIEGO"]
[null,null,null,"SAN EDUARDO"]
[null,null,null,"SAN ESTANISLAO"]
[null,null,null,"SAN FELIPE"]
[null,null,null,"SAN FERNANDO"]
[null,null,null,"SAN FRANCISCO"]
[null,null,null,"SAN FRANCISCO"]
[null,null,null,"SAN FRANCISCO"]
[null,null,null,"SAN GIL"]
[null,null,null,"SAN JACINTO"]
[null,null,null,"SAN JACINTO DEL CAUCA"]
[null,null,null,"SAN JERÓNIMO"]
[null,null,null,"SAN JOAQUÍN"]
[null,null,null,"SAN JOSÉ"]
[null,null,null,"SAN JOSÉ DE LA MONTAÑA"]
[null,null,null,"SAN JOSÉ DE MIRANDA"]
[null,null,null,"SAN JOSÉ DE PARE"]
[null,null,null,"SAN JOSÉ DE URÉ"]
[null,null,null,"SAN JOSÉ DEL FRAGUA"]
[null,null,null,"SAN JOSÉ DEL GUAVIARE"]
[null,null,null,"SAN JOSÉ DEL PALMAR"]
[null,null,null,"SAN JUAN DE ARAMA"]
[null,null,null,"SAN JUAN DE BETULIA"]
[null,null,null,"SAN JUAN DE RÍO SECO"]
[null,null,null,"SAN JUAN DE URABÁ"]
[null,null,null,"SAN JUAN DEL CESAR"]
[null,null,null,"SAN JUAN NEPOMUCENO"]
[null,null,null,"SAN JUANITO"]
[null,null,null,"SAN LORENZO"]
[null,null,null,"SAN LUIS"]
[null,null,null,"SAN LUIS"]
[null,null,null,"SAN LUIS DE GACENO"]
[null,null,null,"SAN LUIS DE PALENQUE"]
[null,null,null,"SAN LUIS DE SINCÉ"]
[null,null,null,"SAN MARCOS"]
[null,null,null,"SAN MARTÍN"]
[null,null,null,"SAN MARTÍN"]
[null,null,null,"SAN MARTÍN DE LOBA"]
[null,null,null,"SAN MATEO"]
[null,null,null,"SAN MIGUEL"]
[null,null,null,"SAN MIGUEL"]
[null,null,null,"SAN MIGUEL DE SEMA"]
[null,null,null,"SAN ONOFRE"]
[null,null,null,"SAN PABLO"]
[null,null,null,"SAN PABLO"]
[null,null,null,"SAN PABLO DE BORBUR"]
[null,null,null,"SAN PEDRO"]
[null,null,null,"SAN PEDRO"]
[null,null,null,"SAN PEDRO DE CARTAGO"]
[null,null,null,"SAN PEDRO DE LOS MILAGROS"]
[null,null,null,"SAN PEDRO DE URABA"]
[null,null,null,"SAN PELAYO"]
[null,null,null,"SAN RAFAEL"]
[null,null,null,"SAN ROQUE"]
[null,null,null,"SAN SEBASTIÁN"]
[null,null,null,"SAN SEBASTIÁN DE BUENAVISTA"]
[null,null,null,"SAN SEBASTIÁN DE MARIQUITA"]
[null,null,null,"SAN VICENTE"]
[null,null,null,"SAN VICENTE DE CHUCURÍ"]
[null,null,null,"SAN VICENTE DEL CAGUÁN"]
[null,null,null,"SAN ZENÓN"]
[null,null,null,"SANDONÁ"]
[null,null,null,"SANTA ANA"]
[null,null,null,"SANTA BÁRBARA"]
[null,null,null,"SANTA BÁRBARA"]
[null,null,null,"SANTA BÁRBARA"]
[null,null,null,"SANTA BÁRBARA DE PINTO"]
[null,null,null,"SANTA CATALINA"]
[null,null,null,"SANTA HELENA DEL OPÓN"]
[null,null,null,"SANTA ISABEL"]
[null,null,null,"SANTA LUCÍA"]
[null,null,null,"SANTA MARÍA"]
[null,null,null,"SANTA MARÍA"]
[null,null,null,"SANTA MARTA"]
[null,null,null,"SANTA ROSA"]
[null,null,null,"SANTA ROSA"]
[null,null,null,"SANTA ROSA DE CABAL"]
[null,null,null,"SANTA ROSA DE OSOS"]
[null,null,null,"SANTA ROSA DE VITERBO"]
[null,null,null,"SANTA ROSA DEL SUR"]
[null,null,null,"SANTA ROSALÍA"]
[null,null,null,"SANTA SOFÍA"]
[null,null,null,"SANTACRUZ"]
[null,null,null,"SANTAFÉ DE ANTIOQUIA"]
[null,null,null,"SANTANA"]
[null,null,null,"SANTANDER DE QUILICHAO"]
[null,null,null,"SANTIAGO"]
[null,null,null,"SANTIAGO"]
[null,null,null,"SANTIAGO DE TOLÚ"]
[null,null,null,"SANTO DOMINGO"]
[null,null,null,"SANTO TOMÁS"]
[null,null,null,"SANTUARIO"]
[null,null,null,"SAPUYES"]
[null,null,null,"SARAVENA"]
[null,null,null,"SARDINATA"]
[null,null,null,"SASAIMA"]
[null,null,null,"SATIVANORTE"]
[null,null,null,"SATIVASUR"]
[null,null,null,"SEGOVIA"]
[null,null,null,"SESQUILÉ"]
[null,null,null,"SEVILLA"]
[null,null,null,"SIACHOQUE"]
[null,null,null,"SIBATÉ"]
[null,null,null,"SIBUNDOY"]
[null,null,null,"SILOS"]
[null,null,null,"SILVANIA"]
[null,null,null,"SILVIA"]
[null,null,null,"SIMACOTA"]
[null,null,null,"SIMIJACA"]
[null,null,null,"SIMITÍ"]
[null,null,null,"SINCELEJO"]
[null,null,null,"SIPÍ"]
[null,null,null,"SITIONUEVO"]
[null,null,null,"SOACHA"]
[null,null,null,"SOATÁ"]
[null,null,null,"SOCHA"]
[null,null,null,"SOCORRO"]
[null,null,null,"SOCOTÁ"]
[null,null,null,"SOGAMOSO"]
[null,null,null,"SOLANO"]
[null,null,null,"SOLEDAD"]
[null,null,null,"SOLITA"]
[null,null,null,"SOMONDOCO"]
[null,null,null,"SONSON"]
[null,null,null,"SOPETRÁN"]
[null,null,null,"SOPLAVIENTO"]
[null,null,null,"SOPÓ"]
[null,null,null,"SORA"]
[null,null,null,"SORACÁ"]
[null,null,null,"SOTAQUIRÁ"]
[null,null,null,"SOTARA"]
[null,null,null,"SUAITA"]
[null,null,null,"SUAN"]
[null,null,null,"SUÁREZ"]
[null,null,null,"SUÁREZ"]
[null,null,null,"SUAZA"]
[null,null,null,"SUBACHOQUE"]
[null,null,null,"SUCRE"]
[null,null,null,"SUCRE"]
[null,null,null,"SUCRE"]
[null,null,null,"SUESCA"]
[null,null,null,"SUPATÁ"]
[null,null,null,"SUPÍA"]
[null,null,null,"SURATÁ"]
[null,null,null,"SUSA"]
[null,null,null,"SUSACÓN"]
[null,null,null,"SUTAMARCHÁN"]
[null,null,null,"SUTATAUSA"]
[null,null,null,"SUTATENZA"]
[null,null,null,"TABIO"]
[null,null,null,"TADÓ"]
[null,null,null,"TALAIGUA NUEVO"]
[null,null,null,"TAMALAMEQUE"]
[null,null,null,"TÁMARA"]
[null,null,null,"TAME"]
[null,null,null,"TÁMESIS"]
[null,null,null,"TAMINANGO"]
[null,null,null,"TANGUA"]
[null,null,null,"TARAIRA"]
[null,null,null,"TARAPACÁ"]
[null,null,null,"TARAZÁ"]
[null,null,null,"TARQUI"]
[null,null,null,"TARSO"]
[null,null,null,"TASCO"]
[null,null,null,"TAURAMENA"]
[null,null,null,"TAUSA"]
[null,null,null,"TELLO"]
[null,null,null,"TENA"]
[null,null,null,"TENERIFE"]
[null,null,null,"TENJO"]
[null,null,null,"TENZA"]
[null,null,null,"TEORAMA"]
[null,null,null,"TERUEL"]
[null,null,null,"TESALIA"]
[null,null,null,"TIBACUY"]
[null,null,null,"TIBANÁ"]
[null,null,null,"TIBASOSA"]
[null,null,null,"TIBIRITA"]
[null,null,null,"TIBÚ"]
[null,null,null,"TIERRALTA"]
[null,null,null,"TIMANÁ"]
[null,null,null,"TIMBÍO"]
[null,null,null,"TIMBIQUÍ"]
[null,null,null,"TINJACÁ"]
[null,null,null,"TIPACOQUE"]
[null,null,null,"TIQUISIO"]
[null,null,null,"TITIRIBÍ"]
[null,null,null,"TOCA"]
[null,null,null,"TOCAIMA"]
[null,null,null,"TOCANCIPÁ"]
[null,null,null,"TOGÜÍ"]
[null,null,null,"TOLEDO"]
[null,null,null,"TOLEDO"]
[null,null,null,"TOLÚ VIEJO"]
[null,null,null,"TONA"]
[null,null,null,"TÓPAGA"]
[null,null,null,"TOPAIPÍ"]
[null,null,null,"TORIBIO"]
[null,null,null,"TORO"]
[null,null,null,"TOTA"]
[null,null,null,"TOTORÓ"]
[null,null,null,"TRINIDAD"]
[null,null,null,"TRUJILLO"]
[null,null,null,"TUBARÁ"]
[null,null,null,"TUCHÍN"]
[null,null,null,"TULUÁ"]
[null,null,null,"TUNJA"]
[null,null,null,"TUNUNGUÁ"]
[null,null,null,"TÚQUERRES"]
[null,null,null,"TURBACO"]
[null,null,null,"TURBANÁ"]
[null,null,null,"TURBO"]
[null,null,null,"TURMEQUÉ"]
[null,null,null,"TUTA"]
[null,null,null,"TUTAZÁ"]
[null,null,null,"UBALÁ"]
[null,null,null,"UBAQUE"]
[null,null,null,"ULLOA"]
[null,null,null,"UMBITA"]
[null,null,null,"UNE"]
[null,null,null,"UNGUÍA"]
[null,null,null,"UNIÓN PANAMERICANA"]
[null,null,null,"URAMITA"]
[null,null,null,"URIBE"]
[null,null,null,"URIBIA"]
[null,null,null,"URRAO"]
[null,null,null,"URUMITA"]
[null,null,null,"USIACURÍ"]
[null,null,null,"ÚTICA"]
[null,null,null,"VALDIVIA"]
[null,null,null,"VALENCIA"]
[null,null,null,"VALLE DE SAN JOSÉ"]
[null,null,null,"VALLE DE SAN JUAN"]
[null,null,null,"VALLE DEL GUAMUEZ"]
[null,null,null,"VALLEDUPAR"]
[null,null,null,"VALPARAÍSO"]
[null,null,null,"VALPARAÍSO"]
[null,null,null,"VEGACHÍ"]
[null,null,null,"VÉLEZ"]
[null,null,null,"VENADILLO"]
[null,null,null,"VENECIA"]
[null,null,null,"VENECIA"]
[null,null,null,"VENTAQUEMADA"]
[null,null,null,"VERGARA"]
[null,null,null,"VERSALLES"]
[null,null,null,"VETAS"]
[null,null,null,"VIANÍ"]
[null,null,null,"VICTORIA"]
[null,null,null,"VIGÍA DEL FUERTE"]
[null,null,null,"VIJES"]
[null,null,null,"VILLA CARO"]
[null,null,null,"VILLA DE LEYVA"]
[null,null,null,"VILLA DE SAN DIEGO DE UBATE"]
[null,null,null,"VILLA DEL ROSARIO"]
[null,null,null,"VILLA RICA"]
[null,null,null,"VILLAGARZÓN"]
[null,null,null,"VILLAGÓMEZ"]
[null,null,null,"VILLAHERMOSA"]
[null,null,null,"VILLAMARÍA"]
[null,null,null,"VILLANUEVA"]
[null,null,null,"VILLANUEVA"]
[null,null,null,"VILLANUEVA"]
[null,null,null,"VILLANUEVA"]
[null,null,null,"VILLAPINZÓN"]
[null,null,null,"VILLARRICA"]
[null,null,null,"VILLAVICENCIO"]
[null,null,null,"VILLAVIEJA"]
[null,null,null,"VILLETA"]
[null,null,null,"VIOTÁ"]
[null,null,null,"VIRACACHÁ"]
[null,null,null,"VISTAHERMOSA"]
[null,null,null,"VITERBO"]
[null,null,null,"YACOPÍ"]
[null,null,null,"YACUANQUER"]
[null,null,null,"YAGUARÁ"]
[null,null,null,"YALÍ"]
[null,null,null,"YARUMAL"]
[null,null,null,"YAVARATÉ"]
[null,null,null,"YOLOMBÓ"]
[null,null,null,"YONDÓ"]
[null,null,null,"YOPAL"]
[null,null,null,"YOTOCO"]
[null,null,null,"YUMBO"]
[null,null,null,"ZAMBRANO"]
[null,null,null,"ZAPATOCA"]
[null,null,null,"ZAPAYÁN"]
[null,null,null,"ZARAGOZA"]
[null,null,null,"ZARZAL"]
[null,null,null,"ZETAQUIRA"]
[null,null,null,"ZIPACÓN"]
[null,null,null,"ZIPAQUIRÁ"]
[null,null,null,"ZONA BANANERA"]

{"sheet":"SE","index":2,"n_rows":18,"n_cols":3,"rows_kept":18,"cut":false,"hidden":true,"merged":[[14,0,14,1],[0,0,0,2],[1,0,1,2],[3,0,3,1],[4,0,4,1],[5,0,5,1],[7,0,7,1],[8,0,8,1],[9,0,9,1],[10,0,10,2],[11,0,11,1],[12,0,12,1]]}
[]
["SANCIÓN POR EXTEMPORANEIDAD"]
[]
["Valor UVT vigente 2019",null,{"$f":"+#REF!","v":{"$error":"#REF!"}}]
["% Extemporaneidad Previo al Emplazamiento:",null,0.05]
["% Extemporaneidad con Posterioridad al Emplazamiento:",null,0.1]
[]
["Fecha en que presentó la declaración:",null,{"$f":"+#REF!","v":{"$error":"#REF!"}}]
["Fecha de vencimiento de la declaración:",null,{"$f":"+#REF!","v":{"$error":"#REF!"}}]
["Meses y/o fracción de mes de extemporaneidad",null,{"$f":"IF(C8-C9>0,ROUNDUP((DAYS360(C9,C8))/30,0),0)","v":{"$error":"#REF!"}}]
[]
["Impuesto a Cargo del periodo (Casilla 31)",null,{"$f":"'FORMULARIO UNICO NACIONAL ICA'!$AK$42","v":0}]
["¿Existe emplazamiento? Aplique el porcentaje que corresponda:",null,0.05]
[]
["Valor sanción por Extemporaneidad",null,{"$f":"IF(C18>C12,C12,C18)","v":{"$error":"#REF!"}}]
[]
[]
[null,null,{"$f":"IF(ROUND((((C12)*C13)*C10),-3)<ROUND((C4*10),-3),ROUND((C4*10),-3),ROUND((((C12)*C13)*C10),-3))","v":{"$error":"#REF!"}}]

{"sheet":"CE","index":3,"n_rows":18,"n_cols":3,"rows_kept":18,"cut":false,"hidden":true,"merged":[[0,0,0,2],[1,0,1,2],[11,0,11,1],[12,0,12,1],[14,0,14,1],[7,0,7,1],[8,0,8,1],[9,0,9,1],[10,0,10,2],[3,0,3,1],[4,0,4,1],[5,0,5,1]]}
[]
["SANCIÓN POR EXTEMPORANEIDAD"]
[]
["Valor UVT vigente 2019",null,{"$f":"+#REF!","v":{"$error":"#REF!"}}]
["% Extemporaneidad Previo al Emplazamiento:",null,0.05]
["% Extemporaneidad con Posterioridad al Emplazamiento:",null,0.1]
[]
["Fecha en que presentó la declaración:",null,{"$f":"+#REF!","v":{"$error":"#REF!"}}]
["Fecha de vencimiento de la declaración:",null,{"$f":"+#REF!","v":{"$error":"#REF!"}}]
["Meses y/o fracción de mes de extemporaneidad",null,{"$f":"IF(C8-C9>0,ROUNDUP((DAYS360(C9,C8))/30,0),0)","v":{"$error":"#REF!"}}]
[]
["Impuesto a Cargo del periodo (Casilla 31)",null,{"$f":"'FORMULARIO UNICO NACIONAL ICA'!$AK$42","v":0}]
["¿Existe emplazamiento? Aplique el porcentaje que corresponda:",null,0.1]
[]
["Valor sanción por Extemporaneidad",null,{"$f":"IF(C18>C12*2,C12*2,C18)","v":{"$error":"#REF!"}}]
[]
[]
[null,null,{"$f":"IF(ROUND((((C12)*C13)*C10),-3)<ROUND((C4*10),-3),ROUND((C4*10),-3),ROUND((((C12)*C13)*C10),-3))","v":{"$error":"#REF!"}}]